﻿Department Family,Entity,Date,Expense Type,Expense Area,Supplier,Transaction Number,AP Amount,Supplier Postcode
Department of Health,NHS Sheffield CCG,28/02/2022,Computer Hardware Purch,IM&T,DELL CORPORATION LTD,39505551,63500,RG12 1LF
Department of Health,NHS Sheffield CCG,28/02/2022,Computer Hardware Purch,IM&T,DELL CORPORATION LTD,39505551,12700,RG12 1LF
Department of Health,NHS Sheffield CCG,28/02/2022,Clinical&Medical-Serv Recd-F Trsts,BEREAVEMENT SERVICE,SHEFFIELD HEALTH & SOCIAL CARE NHS FOUNDATION TRUST,39707445,25000,S10 3TH
Department of Health,NHS Sheffield CCG,28/02/2022,External Consultancy Fees,BEREAVEMENT SERVICE,GATENBYSANDERSON LTD,39725375,37039.2,LS1 2HL
Department of Health,NHS Sheffield CCG,28/02/2022,Participation Fees,BEREAVEMENT SERVICE,SHEFFIELD LOCAL DENTAL COMMITTEE,39746654,100000,S13 9BN
Department of Health,NHS Sheffield CCG,28/02/2022,Clinical&Medical-Commercial Sector,PATIENT TRANSPORT,PREMIER CARE DIRECT LTD,39746691,112480.55,DN4 5NU
Department of Health,NHS Sheffield CCG,28/02/2022,Clinical&Medical-Voluntary Sector,MENTAL HEALTH SERVICES - OTHER,SOUTH YORKSHIRE EATING DISORDERS ASSOCIATION,39746696,206600,S6 3BT
Department of Health,NHS Sheffield CCG,28/02/2022,Cont Care-Physical Disab (65+),CHC ADULT FULLY FUNDED,ABBEYCARE NURSING,39746829,53505.76,S35 9YY
Department of Health,NHS Sheffield CCG,28/02/2022,C&M- PCN DES CARE COORDINATOR,PRC DELEGATED CO-COMMISSIONING,PRIMARY CARE SHEFFIELD LTD,39746870,1331.92,S9 4EU
Department of Health,NHS Sheffield CCG,28/02/2022,C&M-GMS C&M-APMS PCN DES Physician Assoc,PRC DELEGATED CO-COMMISSIONING,PRIMARY CARE SHEFFIELD LTD,39746870,8729.98,S9 4EU
Department of Health,NHS Sheffield CCG,28/02/2022,C&M-GMS PCN DES Clin Pharmacist,PRC DELEGATED CO-COMMISSIONING,PRIMARY CARE SHEFFIELD LTD,39746870,25299.43,S9 4EU
Department of Health,NHS Sheffield CCG,28/02/2022,C&M-GMS PCN DES Soc Prescribing,PRC DELEGATED CO-COMMISSIONING,PRIMARY CARE SHEFFIELD LTD,39746870,8453.42,S9 4EU
Department of Health,NHS Sheffield CCG,28/02/2022,C&M-PCN DES Adult Mental Health Practitioner,PRC DELEGATED CO-COMMISSIONING,PRIMARY CARE SHEFFIELD LTD,39746870,1509.14,S9 4EU
Department of Health,NHS Sheffield CCG,28/02/2022,C&M-PCN DES PHARMACY TECHNICIANS,PRC DELEGATED CO-COMMISSIONING,PRIMARY CARE SHEFFIELD LTD,39746870,8331.72,S9 4EU
Department of Health,NHS Sheffield CCG,28/02/2022,Clinical&Medical-Serv Recd-F Trsts,BEREAVEMENT SERVICE,ROTHERHAM NHS FOUNDATION TRUST,39746960,96342,S60 2UD
Department of Health,NHS Sheffield CCG,28/02/2022,C&M- PCN DES Nursing Associate,PRC DELEGATED CO-COMMISSIONING,PRIMARY CARE SHEFFIELD LTD,39746978,2241.98,S9 4EU
Department of Health,NHS Sheffield CCG,28/02/2022,C&M-GMS C&M-APMS PCN DES Physician Assoc,PRC DELEGATED CO-COMMISSIONING,PRIMARY CARE SHEFFIELD LTD,39746978,14787.23,S9 4EU
Department of Health,NHS Sheffield CCG,28/02/2022,C&M-GMS PCN DES Clin Pharmacist,PRC DELEGATED CO-COMMISSIONING,PRIMARY CARE SHEFFIELD LTD,39746978,12100.66,S9 4EU
Department of Health,NHS Sheffield CCG,28/02/2022,C&M-GMS PCN DES Physiotherapist,PRC DELEGATED CO-COMMISSIONING,PRIMARY CARE SHEFFIELD LTD,39746978,4776.5,S9 4EU
Department of Health,NHS Sheffield CCG,28/02/2022,C&M-GMS PCN DES Soc Prescribing,PRC DELEGATED CO-COMMISSIONING,PRIMARY CARE SHEFFIELD LTD,39746978,2333.33,S9 4EU
Department of Health,NHS Sheffield CCG,28/02/2022,C&M-PCN DES Adult Mental Health Practitioner,PRC DELEGATED CO-COMMISSIONING,PRIMARY CARE SHEFFIELD LTD,39746978,2264.25,S9 4EU
Department of Health,NHS Sheffield CCG,28/02/2022,C&M-PCN DES PHARMACY TECHNICIANS,PRC DELEGATED CO-COMMISSIONING,PRIMARY CARE SHEFFIELD LTD,39746978,4069.74,S9 4EU
Department of Health,NHS Sheffield CCG,28/02/2022,C&M-PCN DES Trainee Nursing Associate,PRC DELEGATED CO-COMMISSIONING,PRIMARY CARE SHEFFIELD LTD,39746978,2059.24,S9 4EU
Department of Health,NHS Sheffield CCG,28/02/2022,C&M-GMS PCO Recruitmt & Retn,GP FORWARD VIEW,SHEFFIELD LOCAL MEDICAL COMMITTEE STATUTORY LEVY,39746997,30000,S7 1LE
Department of Health,NHS Sheffield CCG,28/02/2022,C&M-APMS DES Immediate&1st Response,LOCAL ENHANCED SERVICES,PRIMARY CARE SHEFFIELD LTD,39747026,36225,S12 3GH
Department of Health,NHS Sheffield CCG,28/02/2022,Cont Care-Learning Disab(<65),CHC ADULT FULLY FUNDED,RUSKIN MILL TRUST LTD,39747046,30872,GL6 0LA
Department of Health,NHS Sheffield CCG,28/02/2022,Cont Care-Learning Disab(<65),CHC ADULT FULLY FUNDED,RUSKIN MILL TRUST LTD,39747065,29876.13,GL6 0LA
Department of Health,NHS Sheffield CCG,28/02/2022,Cont Care-Learning Disab(<65),CHC ADULT FULLY FUNDED,RUSKIN MILL TRUST LTD,39747072,30872,GL6 0LA
Department of Health,NHS Sheffield CCG,28/02/2022,Cont Care-Learning Disab(<65),CHC ADULT FULLY FUNDED,RUSKIN MILL TRUST LTD,39747082,29876.13,GL6 0LA
Department of Health,NHS Sheffield CCG,28/02/2022,C&M- PCN DES Nursing Associate,PRC DELEGATED CO-COMMISSIONING,PRIMARY CARE SHEFFIELD LTD,39747178,1983.15,S9 4EU
Department of Health,NHS Sheffield CCG,28/02/2022,C&M-GMS C&M-APMS PCN DES Physician Assoc,PRC DELEGATED CO-COMMISSIONING,PRIMARY CARE SHEFFIELD LTD,39747178,8653.65,S9 4EU
Department of Health,NHS Sheffield CCG,28/02/2022,C&M-GMS PCN DES Clin Pharmacist,PRC DELEGATED CO-COMMISSIONING,PRIMARY CARE SHEFFIELD LTD,39747178,21958.64,S9 4EU
Department of Health,NHS Sheffield CCG,28/02/2022,C&M-GMS PCN DES Home/RR paramedic,PRC DELEGATED CO-COMMISSIONING,PRIMARY CARE SHEFFIELD LTD,39747178,4549.5,S9 4EU
Department of Health,NHS Sheffield CCG,28/02/2022,C&M-GMS PCN DES Physiotherapist,PRC DELEGATED CO-COMMISSIONING,PRIMARY CARE SHEFFIELD LTD,39747178,8312,S9 4EU
Department of Health,NHS Sheffield CCG,28/02/2022,C&M-GMS PCN DES Soc Prescribing,PRC DELEGATED CO-COMMISSIONING,PRIMARY CARE SHEFFIELD LTD,39747178,2917.68,S9 4EU
Department of Health,NHS Sheffield CCG,28/02/2022,C&M-PCN DES PHARMACY TECHNICIANS,PRC DELEGATED CO-COMMISSIONING,PRIMARY CARE SHEFFIELD LTD,39747178,3035.67,S9 4EU
Department of Health,NHS Sheffield CCG,28/02/2022,Computer Software/License,PRIMARY CARE IT,ACCURX LTD,39747217,47379.95,N1 5AA
Department of Health,NHS Sheffield CCG,28/02/2022,Computer Software/License,PRIMARY CARE IT,ACCURX LTD,39747239,-47379.96,N1 5AA
Department of Health,NHS Sheffield CCG,28/02/2022,Clinical&Medical-Independent Sector,ACUTE COMMISSIONING,BMI HEALTHCARE LTD,39761122,51688.33,SK3 0XN
Department of Health,NHS Sheffield CCG,28/02/2022,Clinical&Medical-Independent Sector,ACUTE COMMISSIONING,SPAMEDICA LTD,39761145,111340.67,BL1 1HU
Department of Health,NHS Sheffield CCG,28/02/2022,C&M- PCN DES CARE COORDINATOR,PRC DELEGATED CO-COMMISSIONING,PRIMARY CARE SHEFFIELD LTD,39761247,2230.4,S9 4EU
Department of Health,NHS Sheffield CCG,28/02/2022,C&M-GMS C&M-APMS PCN DES Physician Assoc,PRC DELEGATED CO-COMMISSIONING,PRIMARY CARE SHEFFIELD LTD,39761247,3348.48,S9 4EU
Department of Health,NHS Sheffield CCG,28/02/2022,C&M-GMS PCN DES Clin Pharmacist,PRC DELEGATED CO-COMMISSIONING,PRIMARY CARE SHEFFIELD LTD,39761247,10456.21,S9 4EU
Department of Health,NHS Sheffield CCG,28/02/2022,C&M-GMS PCN DES Home/RR paramedic,PRC DELEGATED CO-COMMISSIONING,PRIMARY CARE SHEFFIELD LTD,39761247,4578.42,S9 4EU
Department of Health,NHS Sheffield CCG,28/02/2022,C&M-GMS PCN DES Physiotherapist,PRC DELEGATED CO-COMMISSIONING,PRIMARY CARE SHEFFIELD LTD,39761247,4776.5,S9 4EU
Department of Health,NHS Sheffield CCG,28/02/2022,C&M-GMS PCN DES Soc Prescribing,PRC DELEGATED CO-COMMISSIONING,PRIMARY CARE SHEFFIELD LTD,39761247,7481.98,S9 4EU
Department of Health,NHS Sheffield CCG,28/02/2022,C&M-PCN DES Adult Mental Health Practitioner,PRC DELEGATED CO-COMMISSIONING,PRIMARY CARE SHEFFIELD LTD,39761247,2264.25,S9 4EU
Department of Health,NHS Sheffield CCG,28/02/2022,C&M-PCN DES OCCUPATIONAL THERAPISTS,PRC DELEGATED CO-COMMISSIONING,PRIMARY CARE SHEFFIELD LTD,39761247,4267.1,S9 4EU
Department of Health,NHS Sheffield CCG,28/02/2022,C&M-PCN DES PHARMACY TECHNICIANS,PRC DELEGATED CO-COMMISSIONING,PRIMARY CARE SHEFFIELD LTD,39761247,7727.67,S9 4EU
Department of Health,NHS Sheffield CCG,28/02/2022,C&M-PCN DES Trainee Nursing Associate,PRC DELEGATED CO-COMMISSIONING,PRIMARY CARE SHEFFIELD LTD,39761247,1733.33,S9 4EU
Department of Health,NHS Sheffield CCG,28/02/2022,Clinical&Medical-Serv Recd-F Trsts,BEREAVEMENT SERVICE,SHEFFIELD TEACHING HOSPITALS NHS FOUNDATION TRUST,39761387,155000,S5 7AU
Department of Health,NHS Sheffield CCG,28/02/2022,Computer Hardware Purch,PRIMARY CARE IT,DELL CORPORATION LTD,39768488,36830,RG12 1LF
Department of Health,NHS Sheffield CCG,28/02/2022,Computer Hardware Purch,PRIMARY CARE IT,DELL CORPORATION LTD,39768488,7366,RG12 1LF
Department of Health,NHS Sheffield CCG,28/02/2022,Computer Hardware Purch,PRIMARY CARE IT,DELL CORPORATION LTD,39768490,63500,RG12 1LF
Department of Health,NHS Sheffield CCG,28/02/2022,Computer Hardware Purch,PRIMARY CARE IT,DELL CORPORATION LTD,39768490,12700,RG12 1LF
Department of Health,NHS Sheffield CCG,28/02/2022,C&M- PCN DES CARE COORDINATOR,PRC DELEGATED CO-COMMISSIONING,PRIMARY CARE SHEFFIELD LTD,39782007,1986.94,S9 4EU
Department of Health,NHS Sheffield CCG,28/02/2022,C&M-GMS C&M-APMS PCN DES Physician Assoc,PRC DELEGATED CO-COMMISSIONING,PRIMARY CARE SHEFFIELD LTD,39782007,8407.3,S9 4EU
Department of Health,NHS Sheffield CCG,28/02/2022,C&M-GMS PCN DES Clin Pharmacist,PRC DELEGATED CO-COMMISSIONING,PRIMARY CARE SHEFFIELD LTD,39782007,10487.55,S9 4EU
Department of Health,NHS Sheffield CCG,28/02/2022,C&M-GMS PCN DES Home/RR paramedic,PRC DELEGATED CO-COMMISSIONING,PRIMARY CARE SHEFFIELD LTD,39782007,921.88,S9 4EU
Department of Health,NHS Sheffield CCG,28/02/2022,C&M-GMS PCN DES Physiotherapist,PRC DELEGATED CO-COMMISSIONING,PRIMARY CARE SHEFFIELD LTD,39782007,2105.19,S9 4EU
Department of Health,NHS Sheffield CCG,28/02/2022,C&M-GMS PCN DES Soc Prescribing,PRC DELEGATED CO-COMMISSIONING,PRIMARY CARE SHEFFIELD LTD,39782007,4223.07,S9 4EU
Department of Health,NHS Sheffield CCG,28/02/2022,C&M- PCN DES CARE COORDINATOR,PRC DELEGATED CO-COMMISSIONING,PRIMARY CARE SHEFFIELD LTD,39782071,1999.14,S9 4EU
Department of Health,NHS Sheffield CCG,28/02/2022,C&M-GMS C&M-APMS PCN DES Physician Assoc,PRC DELEGATED CO-COMMISSIONING,PRIMARY CARE SHEFFIELD LTD,39782071,4094.57,S9 4EU
Department of Health,NHS Sheffield CCG,28/02/2022,C&M-GMS PCN DES Clin Pharmacist,PRC DELEGATED CO-COMMISSIONING,PRIMARY CARE SHEFFIELD LTD,39782071,14040.44,S9 4EU
Department of Health,NHS Sheffield CCG,28/02/2022,C&M-GMS PCN DES Physiotherapist,PRC DELEGATED CO-COMMISSIONING,PRIMARY CARE SHEFFIELD LTD,39782071,9553,S9 4EU
Department of Health,NHS Sheffield CCG,28/02/2022,C&M-GMS PCN DES Soc Prescribing,PRC DELEGATED CO-COMMISSIONING,PRIMARY CARE SHEFFIELD LTD,39782071,7875,S9 4EU
Department of Health,NHS Sheffield CCG,28/02/2022,C&M-PCN DES HEALTH AND WELLBEING COACH,PRC DELEGATED CO-COMMISSIONING,PRIMARY CARE SHEFFIELD LTD,39782071,1618.01,S9 4EU
Department of Health,NHS Sheffield CCG,28/02/2022,C&M-PCN DES PHARMACY TECHNICIANS,PRC DELEGATED CO-COMMISSIONING,PRIMARY CARE SHEFFIELD LTD,39782071,2835.74,S9 4EU
Department of Health,NHS Sheffield CCG,28/02/2022,Cont Care-Physical Disab (65+),CHC ADULT FULLY FUNDED,BC SHEFFIELD LTD,39804383,38643.95,S9 2TJ
Department of Health,NHS Sheffield CCG,28/02/2022,Computer Software/License,CONTINUING HEALTHCARE ASSESSMENT & SUPPORT,QA PLUS LTD,39804470,45328.32,NP44 3JU
Department of Health,NHS Sheffield CCG,28/02/2022,C&M-GMS IT Comm Servs -GP Practices,PRIMARY CARE IT,ACCURX LTD,39804506,4436.93,N1 5AA
Department of Health,NHS Sheffield CCG,28/02/2022,C&M-GMS IT Comm Servs -GP Practices,PRIMARY CARE IT,ACCURX LTD,39804506,887.38,N1 5AA
Department of Health,NHS Sheffield CCG,28/02/2022,Computer Software/License,PRIMARY CARE IT,ACCURX LTD,39804506,30949.77,N1 5AA
Department of Health,NHS Sheffield CCG,28/02/2022,Clinical&Medical-Serv Recd-F Trsts,CLINICAL LEADS,SHEFFIELD TEACHING HOSPITALS NHS FOUNDATION TRUST,39804639,1033000,S5 7AU
Department of Health,NHS Sheffield CCG,28/02/2022,Clinical&Medical-Serv Recd-F Trsts,CLINICAL LEADS,SHEFFIELD TEACHING HOSPITALS NHS FOUNDATION TRUST,39804646,50000,S5 7AU
Department of Health,NHS Sheffield CCG,28/02/2022,Clinical&Medical-Voluntary Sector,MENTAL HEALTH SERVICES - OTHER,MANOR & CASTLE DEVELOPMENT TRUST LTD,39804698,33110,S9 4WG
Department of Health,NHS Sheffield CCG,28/02/2022,Clinical&Medical-Voluntary Sector,MENTAL HEALTH SERVICES - OTHER,WOODHOUSE & DISTRICT COMMUNITY FORUM,39804705,32905,S13 7TE
Department of Health,NHS Sheffield CCG,28/02/2022,C&M-APMS Contract Value,PRC DELEGATED CO-COMMISSIONING,CLOVER CITY PRACTICE,39815847,33923.53,S9 4QH
Department of Health,NHS Sheffield CCG,28/02/2022,C&M-APMS LONG COVID ES,PRC DELEGATED CO-COMMISSIONING,CLOVER CITY PRACTICE,39815847,206.81,S9 4QH
Department of Health,NHS Sheffield CCG,28/02/2022,C&M-APMS OOH Opt Outs,PRC DELEGATED CO-COMMISSIONING,CLOVER CITY PRACTICE,39815847,18.88,S9 4QH
Department of Health,NHS Sheffield CCG,28/02/2022,C&M-APMS PCN DES Participation,PRC DELEGATED CO-COMMISSIONING,CLOVER CITY PRACTICE,39815847,592.77,S9 4QH
Department of Health,NHS Sheffield CCG,28/02/2022,C&M-APMS QOF Aspiration,PRC DELEGATED CO-COMMISSIONING,CLOVER CITY PRACTICE,39815847,2087.76,S9 4QH
Department of Health,NHS Sheffield CCG,28/02/2022,C&M-PMS Contract Value,PRC DELEGATED CO-COMMISSIONING,WINCOBANK MEDICAL CENTRE,39815849,67007.78,S9 1DJ
Department of Health,NHS Sheffield CCG,28/02/2022,C&M-PMS DES Minor Surgery,PRC DELEGATED CO-COMMISSIONING,WINCOBANK MEDICAL CENTRE,39815849,640,S9 1DJ
Department of Health,NHS Sheffield CCG,28/02/2022,C&M-PMS LONG COVID ES,PRC DELEGATED CO-COMMISSIONING,WINCOBANK MEDICAL CENTRE,39815849,315.76,S9 1DJ
Department of Health,NHS Sheffield CCG,28/02/2022,C&M-PMS Out of Hours Opt Outs,PRC DELEGATED CO-COMMISSIONING,WINCOBANK MEDICAL CENTRE,39815849,14.65,S9 1DJ
Department of Health,NHS Sheffield CCG,28/02/2022,C&M-PMS PCN DES Participation,PRC DELEGATED CO-COMMISSIONING,WINCOBANK MEDICAL CENTRE,39815849,1191.11,S9 1DJ
Department of Health,NHS Sheffield CCG,28/02/2022,C&M-PMS Prem Healthcentre Rent,PRC DELEGATED CO-COMMISSIONING,WINCOBANK MEDICAL CENTRE,39815849,47262.38,S9 1DJ
Department of Health,NHS Sheffield CCG,28/02/2022,C&M-PMS QOF Aspiration,PRC DELEGATED CO-COMMISSIONING,WINCOBANK MEDICAL CENTRE,39815849,6971.47,S9 1DJ
Department of Health,NHS Sheffield CCG,28/02/2022,C&M-PMS Contract Value,PRC DELEGATED CO-COMMISSIONING,FOXHILL MEDICAL CENTRE SHEFFIELD,39815851,53906.01,S6 1GA
Department of Health,NHS Sheffield CCG,28/02/2022,C&M-PMS DES Learn Dsblty Hlth Chk,PRC DELEGATED CO-COMMISSIONING,FOXHILL MEDICAL CENTRE SHEFFIELD,39815851,3080,S6 1GA
Department of Health,NHS Sheffield CCG,28/02/2022,C&M-PMS DES Minor Surgery,PRC DELEGATED CO-COMMISSIONING,FOXHILL MEDICAL CENTRE SHEFFIELD,39815851,85,S6 1GA
Department of Health,NHS Sheffield CCG,28/02/2022,C&M-PMS LONG COVID ES,PRC DELEGATED CO-COMMISSIONING,FOXHILL MEDICAL CENTRE SHEFFIELD,39815851,247.09,S6 1GA
Department of Health,NHS Sheffield CCG,28/02/2022,C&M-PMS Out of Hours Opt Outs,PRC DELEGATED CO-COMMISSIONING,FOXHILL MEDICAL CENTRE SHEFFIELD,39815851,102.96,S6 1GA
Department of Health,NHS Sheffield CCG,28/02/2022,C&M-PMS PCN DES Participation,PRC DELEGATED CO-COMMISSIONING,FOXHILL MEDICAL CENTRE SHEFFIELD,39815851,965.57,S6 1GA
Department of Health,NHS Sheffield CCG,28/02/2022,C&M-PMS Prem Healthcentre Rent,PRC DELEGATED CO-COMMISSIONING,FOXHILL MEDICAL CENTRE SHEFFIELD,39815851,48823.57,S6 1GA
Department of Health,NHS Sheffield CCG,28/02/2022,C&M-PMS QOF Aspiration,PRC DELEGATED CO-COMMISSIONING,FOXHILL MEDICAL CENTRE SHEFFIELD,39815851,6019.72,S6 1GA
Department of Health,NHS Sheffield CCG,28/02/2022,C&M-PMS Contract Value,PRC DELEGATED CO-COMMISSIONING,WOODHOUSE HEALTH CENTRE,39815853,104188.79,S13 7LY
Department of Health,NHS Sheffield CCG,28/02/2022,C&M-PMS DES Learn Dsblty Hlth Chk,PRC DELEGATED CO-COMMISSIONING,WOODHOUSE HEALTH CENTRE,39815853,1960,S13 7LY
Department of Health,NHS Sheffield CCG,28/02/2022,C&M-PMS LONG COVID ES,PRC DELEGATED CO-COMMISSIONING,WOODHOUSE HEALTH CENTRE,39815853,501.18,S13 7LY
Department of Health,NHS Sheffield CCG,28/02/2022,C&M-PMS Out of Hours Opt Outs,PRC DELEGATED CO-COMMISSIONING,WOODHOUSE HEALTH CENTRE,39815853,160.99,S13 7LY
Department of Health,NHS Sheffield CCG,28/02/2022,C&M-PMS PCN DES Participation,PRC DELEGATED CO-COMMISSIONING,WOODHOUSE HEALTH CENTRE,39815853,1880.78,S13 7LY
Department of Health,NHS Sheffield CCG,28/02/2022,C&M-PMS Prem Notional Rent,PRC DELEGATED CO-COMMISSIONING,WOODHOUSE HEALTH CENTRE,39815853,6889.58,S13 7LY
Department of Health,NHS Sheffield CCG,28/02/2022,C&M-PMS QOF Aspiration,PRC DELEGATED CO-COMMISSIONING,WOODHOUSE HEALTH CENTRE,39815853,15023.58,S13 7LY
Department of Health,NHS Sheffield CCG,28/02/2022,C&M-PMS WEIGHT MANAGEMENT SERVICE,PRC DELEGATED CO-COMMISSIONING,WOODHOUSE HEALTH CENTRE,39815853,69,S13 7LY
Department of Health,NHS Sheffield CCG,28/02/2022,C&M-PMS Contract Value,PRC DELEGATED CO-COMMISSIONING,GLEADLESS MEDICAL CENTRE,39815855,71125.01,S14 1PQ
Department of Health,NHS Sheffield CCG,28/02/2022,C&M-PMS LONG COVID ES,PRC DELEGATED CO-COMMISSIONING,GLEADLESS MEDICAL CENTRE,39815855,365.6,S14 1PQ
Department of Health,NHS Sheffield CCG,28/02/2022,C&M-PMS Out of Hours Opt Outs,PRC DELEGATED CO-COMMISSIONING,GLEADLESS MEDICAL CENTRE,39815855,122.59,S14 1PQ
Department of Health,NHS Sheffield CCG,28/02/2022,C&M-PMS PCN DES Participation,PRC DELEGATED CO-COMMISSIONING,GLEADLESS MEDICAL CENTRE,39815855,1285.55,S14 1PQ
Department of Health,NHS Sheffield CCG,28/02/2022,C&M-PMS Prem Notional Rent,PRC DELEGATED CO-COMMISSIONING,GLEADLESS MEDICAL CENTRE,39815855,6885.42,S14 1PQ
Department of Health,NHS Sheffield CCG,28/02/2022,C&M-PMS Prem Water Rates,PRC DELEGATED CO-COMMISSIONING,GLEADLESS MEDICAL CENTRE,39815855,297.63,S14 1PQ
Department of Health,NHS Sheffield CCG,28/02/2022,C&M-PMS QOF Aspiration,PRC DELEGATED CO-COMMISSIONING,GLEADLESS MEDICAL CENTRE,39815855,8062.34,S14 1PQ
Department of Health,NHS Sheffield CCG,28/02/2022,C&M-PMS Contract Value,PRC DELEGATED CO-COMMISSIONING,HACKENTHORPE MEDICAL CENTRE,39815858,51630.22,S12 4LA
Department of Health,NHS Sheffield CCG,28/02/2022,C&M-PMS DES Learn Dsblty Hlth Chk,PRC DELEGATED CO-COMMISSIONING,HACKENTHORPE MEDICAL CENTRE,39815858,980,S12 4LA
Department of Health,NHS Sheffield CCG,28/02/2022,C&M-PMS LONG COVID ES,PRC DELEGATED CO-COMMISSIONING,HACKENTHORPE MEDICAL CENTRE,39815858,277.63,S12 4LA
Department of Health,NHS Sheffield CCG,28/02/2022,C&M-PMS Out of Hours Opt Outs,PRC DELEGATED CO-COMMISSIONING,HACKENTHORPE MEDICAL CENTRE,39815858,61.09,S12 4LA
Department of Health,NHS Sheffield CCG,28/02/2022,C&M-PMS PCN DES Participation,PRC DELEGATED CO-COMMISSIONING,HACKENTHORPE MEDICAL CENTRE,39815858,930.28,S12 4LA
Department of Health,NHS Sheffield CCG,28/02/2022,C&M-PMS Prem Notional Rent,PRC DELEGATED CO-COMMISSIONING,HACKENTHORPE MEDICAL CENTRE,39815858,5325.01,S12 4LA
Department of Health,NHS Sheffield CCG,28/02/2022,C&M-PMS QOF Aspiration,PRC DELEGATED CO-COMMISSIONING,HACKENTHORPE MEDICAL CENTRE,39815858,7164.43,S12 4LA
Department of Health,NHS Sheffield CCG,28/02/2022,C&M-PMS WEIGHT MANAGEMENT SERVICE,PRC DELEGATED CO-COMMISSIONING,HACKENTHORPE MEDICAL CENTRE,39815858,23,S12 4LA
Department of Health,NHS Sheffield CCG,28/02/2022,C&M-PMS Contract Value,PRC DELEGATED CO-COMMISSIONING,MANCHESTER ROAD SURGERY SHEFFIELD,39815860,35732.27,S10 5PN
Department of Health,NHS Sheffield CCG,28/02/2022,C&M-PMS DES Learn Dsblty Hlth Chk,PRC DELEGATED CO-COMMISSIONING,MANCHESTER ROAD SURGERY SHEFFIELD,39815860,280,S10 5PN
Department of Health,NHS Sheffield CCG,28/02/2022,C&M-PMS LONG COVID ES,PRC DELEGATED CO-COMMISSIONING,MANCHESTER ROAD SURGERY SHEFFIELD,39815860,201.08,S10 5PN
Department of Health,NHS Sheffield CCG,28/02/2022,C&M-PMS Out of Hours Opt Outs,PRC DELEGATED CO-COMMISSIONING,MANCHESTER ROAD SURGERY SHEFFIELD,39815860,16.19,S10 5PN
Department of Health,NHS Sheffield CCG,28/02/2022,C&M-PMS PCN DES Participation,PRC DELEGATED CO-COMMISSIONING,MANCHESTER ROAD SURGERY SHEFFIELD,39815860,637.95,S10 5PN
Department of Health,NHS Sheffield CCG,28/02/2022,C&M-PMS Prem Cost Rent,PRC DELEGATED CO-COMMISSIONING,MANCHESTER ROAD SURGERY SHEFFIELD,39815860,3077.32,S10 5PN
Department of Health,NHS Sheffield CCG,28/02/2022,C&M-PMS Prem Notional Rent,PRC DELEGATED CO-COMMISSIONING,MANCHESTER ROAD SURGERY SHEFFIELD,39815860,442.92,S10 5PN
Department of Health,NHS Sheffield CCG,28/02/2022,C&M-PMS QOF Aspiration,PRC DELEGATED CO-COMMISSIONING,MANCHESTER ROAD SURGERY SHEFFIELD,39815860,4335.38,S10 5PN
Department of Health,NHS Sheffield CCG,28/02/2022,C&M-PMS WEIGHT MANAGEMENT SERVICE,PRC DELEGATED CO-COMMISSIONING,MANCHESTER ROAD SURGERY SHEFFIELD,39815860,11.5,S10 5PN
Department of Health,NHS Sheffield CCG,28/02/2022,C&M-PMS Contract Value,PRC DELEGATED CO-COMMISSIONING,MANOR & PARK GROUP PRACTICE,39815862,74423.94,S2 1QU
Department of Health,NHS Sheffield CCG,28/02/2022,C&M-PMS DES Learn Dsblty Hlth Chk,PRC DELEGATED CO-COMMISSIONING,MANOR & PARK GROUP PRACTICE,39815862,1400,S2 1QU
Department of Health,NHS Sheffield CCG,28/02/2022,C&M-PMS LONG COVID ES,PRC DELEGATED CO-COMMISSIONING,MANOR & PARK GROUP PRACTICE,39815862,351.25,S2 1QU
Department of Health,NHS Sheffield CCG,28/02/2022,C&M-PMS Out of Hours Opt Outs,PRC DELEGATED CO-COMMISSIONING,MANOR & PARK GROUP PRACTICE,39815862,74.82,S2 1QU
Department of Health,NHS Sheffield CCG,28/02/2022,C&M-PMS PCN DES Participation,PRC DELEGATED CO-COMMISSIONING,MANOR & PARK GROUP PRACTICE,39815862,1333.57,S2 1QU
Department of Health,NHS Sheffield CCG,28/02/2022,C&M-PMS Prem Notional Rent,PRC DELEGATED CO-COMMISSIONING,MANOR & PARK GROUP PRACTICE,39815862,9112.5,S2 1QU
Department of Health,NHS Sheffield CCG,28/02/2022,C&M-PMS QOF Aspiration,PRC DELEGATED CO-COMMISSIONING,MANOR & PARK GROUP PRACTICE,39815862,6833.28,S2 1QU
Department of Health,NHS Sheffield CCG,28/02/2022,C&M-PMS Contract Value,PRC DELEGATED CO-COMMISSIONING,MEADOWHEAD GROUP PRACTICE,39815864,165813.99,S8 7RL
Department of Health,NHS Sheffield CCG,28/02/2022,C&M-PMS LONG COVID ES,PRC DELEGATED CO-COMMISSIONING,MEADOWHEAD GROUP PRACTICE,39815864,764.3,S8 7RL
Department of Health,NHS Sheffield CCG,28/02/2022,C&M-PMS Out of Hours Opt Outs,PRC DELEGATED CO-COMMISSIONING,MEADOWHEAD GROUP PRACTICE,39815864,308.52,S8 7RL
Department of Health,NHS Sheffield CCG,28/02/2022,C&M-PMS PCN DES Participation,PRC DELEGATED CO-COMMISSIONING,MEADOWHEAD GROUP PRACTICE,39815864,2652.53,S8 7RL
Department of Health,NHS Sheffield CCG,28/02/2022,C&M-PMS Prem Actual Rent,PRC DELEGATED CO-COMMISSIONING,MEADOWHEAD GROUP PRACTICE,39815864,3358.33,S8 7RL
Department of Health,NHS Sheffield CCG,28/02/2022,C&M-PMS Prem Cost Rent,PRC DELEGATED CO-COMMISSIONING,MEADOWHEAD GROUP PRACTICE,39815864,3647.42,S8 7RL
Department of Health,NHS Sheffield CCG,28/02/2022,C&M-PMS Prem Healthcentre Rent,PRC DELEGATED CO-COMMISSIONING,MEADOWHEAD GROUP PRACTICE,39815864,42600.17,S8 7RL
Department of Health,NHS Sheffield CCG,28/02/2022,C&M-PMS Prem Notional Rent,PRC DELEGATED CO-COMMISSIONING,MEADOWHEAD GROUP PRACTICE,39815864,5666.67,S8 7RL
Department of Health,NHS Sheffield CCG,28/02/2022,C&M-PMS QOF Aspiration,PRC DELEGATED CO-COMMISSIONING,MEADOWHEAD GROUP PRACTICE,39815864,18549.4,S8 7RL
Department of Health,NHS Sheffield CCG,28/02/2022,C&M-PMS WEIGHT MANAGEMENT SERVICE,PRC DELEGATED CO-COMMISSIONING,MEADOWHEAD GROUP PRACTICE,39815864,184,S8 7RL
Department of Health,NHS Sheffield CCG,28/02/2022,C&M-PMS Contract Value,PRC DELEGATED CO-COMMISSIONING,MEADOWHEAD GROUP PRACTICE,39815865,-7256.87,S8 7RL
Department of Health,NHS Sheffield CCG,28/02/2022,C&M-PMS GP Statutory Levy,PRC DELEGATED CO-COMMISSIONING,MEADOWHEAD GROUP PRACTICE,39815865,-656.95,S8 7RL
Department of Health,NHS Sheffield CCG,28/02/2022,C&M-PMS Out of Hours Opt Outs,PRC DELEGATED CO-COMMISSIONING,MEADOWHEAD GROUP PRACTICE,39815865,-7789.5,S8 7RL
Department of Health,NHS Sheffield CCG,28/02/2022,C&M-PMS Prem Actual Rent,PRC DELEGATED CO-COMMISSIONING,MEADOWHEAD GROUP PRACTICE,39815865,-3358.33,S8 7RL
Department of Health,NHS Sheffield CCG,28/02/2022,C&M-PMS Prem Cost Rent,PRC DELEGATED CO-COMMISSIONING,MEADOWHEAD GROUP PRACTICE,39815865,-3647.42,S8 7RL
Department of Health,NHS Sheffield CCG,28/02/2022,C&M-PMS Prem Healthcentre Rent,PRC DELEGATED CO-COMMISSIONING,MEADOWHEAD GROUP PRACTICE,39815865,-767.14,S8 7RL
Department of Health,NHS Sheffield CCG,28/02/2022,C&M-PMS Contract Value,PRC DELEGATED CO-COMMISSIONING,MOSBOROUGH HEALTH CENTRE,39815867,53726.94,S20 5BQ
Department of Health,NHS Sheffield CCG,28/02/2022,C&M-PMS DES Learn Dsblty Hlth Chk,PRC DELEGATED CO-COMMISSIONING,MOSBOROUGH HEALTH CENTRE,39815867,2240,S20 5BQ
Department of Health,NHS Sheffield CCG,28/02/2022,C&M-PMS DES Minor Surgery,PRC DELEGATED CO-COMMISSIONING,MOSBOROUGH HEALTH CENTRE,39815867,280,S20 5BQ
Department of Health,NHS Sheffield CCG,28/02/2022,C&M-PMS LONG COVID ES,PRC DELEGATED CO-COMMISSIONING,MOSBOROUGH HEALTH CENTRE,39815867,286.99,S20 5BQ
Department of Health,NHS Sheffield CCG,28/02/2022,C&M-PMS Out of Hours Opt Outs,PRC DELEGATED CO-COMMISSIONING,MOSBOROUGH HEALTH CENTRE,39815867,55.39,S20 5BQ
Department of Health,NHS Sheffield CCG,28/02/2022,C&M-PMS PCN DES Participation,PRC DELEGATED CO-COMMISSIONING,MOSBOROUGH HEALTH CENTRE,39815867,972.62,S20 5BQ
Department of Health,NHS Sheffield CCG,28/02/2022,C&M-PMS Prem Notional Rent,PRC DELEGATED CO-COMMISSIONING,MOSBOROUGH HEALTH CENTRE,39815867,4541.67,S20 5BQ
Department of Health,NHS Sheffield CCG,28/02/2022,C&M-PMS QOF Aspiration,PRC DELEGATED CO-COMMISSIONING,MOSBOROUGH HEALTH CENTRE,39815867,6344.52,S20 5BQ
Department of Health,NHS Sheffield CCG,28/02/2022,C&M-PMS WEIGHT MANAGEMENT SERVICE,PRC DELEGATED CO-COMMISSIONING,MOSBOROUGH HEALTH CENTRE,39815867,34.5,S20 5BQ
Department of Health,NHS Sheffield CCG,28/02/2022,C&M-PMS Contract Value,PRC DELEGATED CO-COMMISSIONING,BARNSLEY ROAD SURGERY,39815869,21536.64,S5 0QJ
Department of Health,NHS Sheffield CCG,28/02/2022,C&M-PMS DES Learn Dsblty Hlth Chk,PRC DELEGATED CO-COMMISSIONING,BARNSLEY ROAD SURGERY,39815869,2240,S5 0QJ
Department of Health,NHS Sheffield CCG,28/02/2022,C&M-PMS LONG COVID ES,PRC DELEGATED CO-COMMISSIONING,BARNSLEY ROAD SURGERY,39815869,102.03,S5 0QJ
Department of Health,NHS Sheffield CCG,28/02/2022,C&M-PMS PCN DES Participation,PRC DELEGATED CO-COMMISSIONING,BARNSLEY ROAD SURGERY,39815869,387.62,S5 0QJ
Department of Health,NHS Sheffield CCG,28/02/2022,C&M-PMS Prem Notional Rent,PRC DELEGATED CO-COMMISSIONING,BARNSLEY ROAD SURGERY,39815869,2831.25,S5 0QJ
Department of Health,NHS Sheffield CCG,28/02/2022,C&M-PMS QOF Aspiration,PRC DELEGATED CO-COMMISSIONING,BARNSLEY ROAD SURGERY,39815869,2443.92,S5 0QJ
Department of Health,NHS Sheffield CCG,28/02/2022,C&M-PMS WEIGHT MANAGEMENT SERVICE,PRC DELEGATED CO-COMMISSIONING,BARNSLEY ROAD SURGERY,39815869,11.5,S5 0QJ
Department of Health,NHS Sheffield CCG,28/02/2022,C&M-PMS Contract Value,PRC DELEGATED CO-COMMISSIONING,RUSTLINGS ROAD MEDICAL CENTRE,39815871,31169.58,S11 7AB
Department of Health,NHS Sheffield CCG,28/02/2022,C&M-PMS DES Learn Dsblty Hlth Chk,PRC DELEGATED CO-COMMISSIONING,RUSTLINGS ROAD MEDICAL CENTRE,39815871,140,S11 7AB
Department of Health,NHS Sheffield CCG,28/02/2022,C&M-PMS LONG COVID ES,PRC DELEGATED CO-COMMISSIONING,RUSTLINGS ROAD MEDICAL CENTRE,39815871,193.13,S11 7AB
Department of Health,NHS Sheffield CCG,28/02/2022,C&M-PMS Out of Hours Opt Outs,PRC DELEGATED CO-COMMISSIONING,RUSTLINGS ROAD MEDICAL CENTRE,39815871,13.78,S11 7AB
Department of Health,NHS Sheffield CCG,28/02/2022,C&M-PMS PCN DES Participation,PRC DELEGATED CO-COMMISSIONING,RUSTLINGS ROAD MEDICAL CENTRE,39815871,544.7,S11 7AB
Department of Health,NHS Sheffield CCG,28/02/2022,C&M-PMS Prem Notional Rent,PRC DELEGATED CO-COMMISSIONING,RUSTLINGS ROAD MEDICAL CENTRE,39815871,1341.67,S11 7AB
Department of Health,NHS Sheffield CCG,28/02/2022,C&M-PMS QOF Aspiration,PRC DELEGATED CO-COMMISSIONING,RUSTLINGS ROAD MEDICAL CENTRE,39815871,3139.32,S11 7AB
Department of Health,NHS Sheffield CCG,28/02/2022,C&M-PMS Contract Value,PRC DELEGATED CO-COMMISSIONING,RICHMOND MEDICAL CENTRE,39815873,74080.58,S13 8NA
Department of Health,NHS Sheffield CCG,28/02/2022,C&M-PMS DES Learn Dsblty Hlth Chk,PRC DELEGATED CO-COMMISSIONING,RICHMOND MEDICAL CENTRE,39815873,140,S13 8NA
Department of Health,NHS Sheffield CCG,28/02/2022,C&M-PMS LONG COVID ES,PRC DELEGATED CO-COMMISSIONING,RICHMOND MEDICAL CENTRE,39815873,380.03,S13 8NA
Department of Health,NHS Sheffield CCG,28/02/2022,C&M-PMS Out of Hours Opt Outs,PRC DELEGATED CO-COMMISSIONING,RICHMOND MEDICAL CENTRE,39815873,57.36,S13 8NA
Department of Health,NHS Sheffield CCG,28/02/2022,C&M-PMS PCN DES Participation,PRC DELEGATED CO-COMMISSIONING,RICHMOND MEDICAL CENTRE,39815873,1317.91,S13 8NA
Department of Health,NHS Sheffield CCG,28/02/2022,C&M-PMS Prem Notional Rent,PRC DELEGATED CO-COMMISSIONING,RICHMOND MEDICAL CENTRE,39815873,6429.17,S13 8NA
Department of Health,NHS Sheffield CCG,28/02/2022,C&M-PMS QOF Aspiration,PRC DELEGATED CO-COMMISSIONING,RICHMOND MEDICAL CENTRE,39815873,8858.87,S13 8NA
Department of Health,NHS Sheffield CCG,28/02/2022,C&M-PMS WEIGHT MANAGEMENT SERVICE,PRC DELEGATED CO-COMMISSIONING,RICHMOND MEDICAL CENTRE,39815873,11.5,S13 8NA
Department of Health,NHS Sheffield CCG,28/02/2022,C&M-PMS Contract Value,PRC DELEGATED CO-COMMISSIONING,OWLTHORPE MEDICAL CENTRE,39815877,34600.51,S20 6PD
Department of Health,NHS Sheffield CCG,28/02/2022,C&M-PMS DES Minor Surgery,PRC DELEGATED CO-COMMISSIONING,OWLTHORPE MEDICAL CENTRE,39815877,40,S20 6PD
Department of Health,NHS Sheffield CCG,28/02/2022,C&M-PMS LONG COVID ES,PRC DELEGATED CO-COMMISSIONING,OWLTHORPE MEDICAL CENTRE,39815877,178.78,S20 6PD
Department of Health,NHS Sheffield CCG,28/02/2022,C&M-PMS Out of Hours Opt Outs,PRC DELEGATED CO-COMMISSIONING,OWLTHORPE MEDICAL CENTRE,39815877,33.32,S20 6PD
Department of Health,NHS Sheffield CCG,28/02/2022,C&M-PMS PCN DES Participation,PRC DELEGATED CO-COMMISSIONING,OWLTHORPE MEDICAL CENTRE,39815877,625.13,S20 6PD
Department of Health,NHS Sheffield CCG,28/02/2022,C&M-PMS PCO Locum Adop/Pat/Mat,PRC DELEGATED CO-COMMISSIONING,OWLTHORPE MEDICAL CENTRE,39815877,7740.5,S20 6PD
Department of Health,NHS Sheffield CCG,28/02/2022,C&M-PMS Prem Actual Rent,PRC DELEGATED CO-COMMISSIONING,OWLTHORPE MEDICAL CENTRE,39815877,7539.58,S20 6PD
Department of Health,NHS Sheffield CCG,28/02/2022,C&M-PMS Prem Rates,PRC DELEGATED CO-COMMISSIONING,OWLTHORPE MEDICAL CENTRE,39815877,15593.75,S20 6PD
Department of Health,NHS Sheffield CCG,28/02/2022,C&M-PMS QOF Aspiration,PRC DELEGATED CO-COMMISSIONING,OWLTHORPE MEDICAL CENTRE,39815877,4236.51,S20 6PD
Department of Health,NHS Sheffield CCG,28/02/2022,C&M-PMS Contract Value,PRC DELEGATED CO-COMMISSIONING,FORGE HEALTH GROUP,39815879,-650.39,S3 9DL
Department of Health,NHS Sheffield CCG,28/02/2022,C&M-PMS GP Statutory Levy,PRC DELEGATED CO-COMMISSIONING,FORGE HEALTH GROUP,39815879,-531.48,S3 9DL
Department of Health,NHS Sheffield CCG,28/02/2022,C&M-PMS Out of Hours Opt Outs,PRC DELEGATED CO-COMMISSIONING,FORGE HEALTH GROUP,39815879,-6094.71,S3 9DL
Department of Health,NHS Sheffield CCG,28/02/2022,C&M-PMS Contract Value,PRC DELEGATED CO-COMMISSIONING,PORTER BROOK MEDICAL CENTRE,39815880,182137.96,S11 8HN
Department of Health,NHS Sheffield CCG,28/02/2022,C&M-PMS DES Learn Dsblty Hlth Chk,PRC DELEGATED CO-COMMISSIONING,PORTER BROOK MEDICAL CENTRE,39815880,1120,S11 8HN
Department of Health,NHS Sheffield CCG,28/02/2022,C&M-PMS LONG COVID ES,PRC DELEGATED CO-COMMISSIONING,PORTER BROOK MEDICAL CENTRE,39815880,1189.1,S11 8HN
Department of Health,NHS Sheffield CCG,28/02/2022,C&M-PMS Out of Hours Opt Outs,PRC DELEGATED CO-COMMISSIONING,PORTER BROOK MEDICAL CENTRE,39815880,147.99,S11 8HN
Department of Health,NHS Sheffield CCG,28/02/2022,C&M-PMS PCN DES Participation,PRC DELEGATED CO-COMMISSIONING,PORTER BROOK MEDICAL CENTRE,39815880,3019.37,S11 8HN
Department of Health,NHS Sheffield CCG,28/02/2022,C&M-PMS PCO Locum Adop/Pat/Mat,PRC DELEGATED CO-COMMISSIONING,PORTER BROOK MEDICAL CENTRE,39815880,5910.48,S11 8HN
Department of Health,NHS Sheffield CCG,28/02/2022,C&M-PMS Prem Actual Rent,PRC DELEGATED CO-COMMISSIONING,PORTER BROOK MEDICAL CENTRE,39815880,1666.67,S11 8HN
Department of Health,NHS Sheffield CCG,28/02/2022,C&M-PMS Prem Notional Rent,PRC DELEGATED CO-COMMISSIONING,PORTER BROOK MEDICAL CENTRE,39815880,11600.01,S11 8HN
Department of Health,NHS Sheffield CCG,28/02/2022,C&M-PMS QOF Aspiration,PRC DELEGATED CO-COMMISSIONING,PORTER BROOK MEDICAL CENTRE,39815880,11138.7,S11 8HN
Department of Health,NHS Sheffield CCG,28/02/2022,C&M-PMS Contract Value,PRC DELEGATED CO-COMMISSIONING,PORTER BROOK MEDICAL CENTRE,39815881,-4011.43,S11 8HN
Department of Health,NHS Sheffield CCG,28/02/2022,C&M-PMS GP Statutory Levy,PRC DELEGATED CO-COMMISSIONING,PORTER BROOK MEDICAL CENTRE,39815881,-1018.99,S11 8HN
Department of Health,NHS Sheffield CCG,28/02/2022,C&M-PMS Out of Hours Opt Outs,PRC DELEGATED CO-COMMISSIONING,PORTER BROOK MEDICAL CENTRE,39815881,-8555.17,S11 8HN
Department of Health,NHS Sheffield CCG,28/02/2022,C&M-PMS Prem Notional Rent,PRC DELEGATED CO-COMMISSIONING,PORTER BROOK MEDICAL CENTRE,39815881,-1666.67,S11 8HN
Department of Health,NHS Sheffield CCG,28/02/2022,C&M-PMS Contract Value,PRC DELEGATED CO-COMMISSIONING,PAGE HALL MEDICAL CENTRE,39815882,63028.24,S4 8GB
Department of Health,NHS Sheffield CCG,28/02/2022,C&M-PMS DES Learn Dsblty Hlth Chk,PRC DELEGATED CO-COMMISSIONING,PAGE HALL MEDICAL CENTRE,39815882,420,S4 8GB
Department of Health,NHS Sheffield CCG,28/02/2022,C&M-PMS LONG COVID ES,PRC DELEGATED CO-COMMISSIONING,PAGE HALL MEDICAL CENTRE,39815882,328.42,S4 8GB
Department of Health,NHS Sheffield CCG,28/02/2022,C&M-PMS Out of Hours Opt Outs,PRC DELEGATED CO-COMMISSIONING,PAGE HALL MEDICAL CENTRE,39815882,18.53,S4 8GB
Department of Health,NHS Sheffield CCG,28/02/2022,C&M-PMS PCN DES Participation,PRC DELEGATED CO-COMMISSIONING,PAGE HALL MEDICAL CENTRE,39815882,1099.51,S4 8GB
Department of Health,NHS Sheffield CCG,28/02/2022,C&M-PMS Prem Notional Rent,PRC DELEGATED CO-COMMISSIONING,PAGE HALL MEDICAL CENTRE,39815882,4833.33,S4 8GB
Department of Health,NHS Sheffield CCG,28/02/2022,C&M-PMS Prem Water Rates,PRC DELEGATED CO-COMMISSIONING,PAGE HALL MEDICAL CENTRE,39815882,98.19,S4 8GB
Department of Health,NHS Sheffield CCG,28/02/2022,C&M-PMS QOF Aspiration,PRC DELEGATED CO-COMMISSIONING,PAGE HALL MEDICAL CENTRE,39815882,5333.21,S4 8GB
Department of Health,NHS Sheffield CCG,28/02/2022,C&M-PMS WEIGHT MANAGEMENT SERVICE,PRC DELEGATED CO-COMMISSIONING,PAGE HALL MEDICAL CENTRE,39815882,46,S4 8GB
Department of Health,NHS Sheffield CCG,28/02/2022,C&M-PMS Contract Value,PRC DELEGATED CO-COMMISSIONING,BURNCROSS SURGERY,39815887,127123.64,S35 1RN
Department of Health,NHS Sheffield CCG,28/02/2022,C&M-PMS DES Learn Dsblty Hlth Chk,PRC DELEGATED CO-COMMISSIONING,BURNCROSS SURGERY,39815887,140,S35 1RN
Department of Health,NHS Sheffield CCG,28/02/2022,C&M-PMS LONG COVID ES,PRC DELEGATED CO-COMMISSIONING,BURNCROSS SURGERY,39815887,618.33,S35 1RN
Department of Health,NHS Sheffield CCG,28/02/2022,C&M-PMS PCN DES Participation,PRC DELEGATED CO-COMMISSIONING,BURNCROSS SURGERY,39815887,2296.43,S35 1RN
Department of Health,NHS Sheffield CCG,28/02/2022,C&M-PMS PCO Other,PRC DELEGATED CO-COMMISSIONING,BURNCROSS SURGERY,39815887,9058,S35 1RN
Department of Health,NHS Sheffield CCG,28/02/2022,C&M-PMS Prem Notional Rent,PRC DELEGATED CO-COMMISSIONING,BURNCROSS SURGERY,39815887,14919.67,S35 1RN
Department of Health,NHS Sheffield CCG,28/02/2022,C&M-PMS Prem Rates,PRC DELEGATED CO-COMMISSIONING,BURNCROSS SURGERY,39815887,21082.75,S35 1RN
Department of Health,NHS Sheffield CCG,28/02/2022,C&M-PMS QOF Aspiration,PRC DELEGATED CO-COMMISSIONING,BURNCROSS SURGERY,39815887,16606.07,S35 1RN
Department of Health,NHS Sheffield CCG,28/02/2022,C&M-PMS WEIGHT MANAGEMENT SERVICE,PRC DELEGATED CO-COMMISSIONING,BURNCROSS SURGERY,39815887,23,S35 1RN
Department of Health,NHS Sheffield CCG,28/02/2022,C&M-APMS Contract Value,PRC DELEGATED CO-COMMISSIONING,CLOVER GROUP PRACTICE,39815889,126839.56,S9 4QH
Department of Health,NHS Sheffield CCG,28/02/2022,C&M-APMS DES Learn Dsblty Hlth Chk,PRC DELEGATED CO-COMMISSIONING,CLOVER GROUP PRACTICE,39815889,420,S9 4QH
Department of Health,NHS Sheffield CCG,28/02/2022,C&M-APMS LONG COVID ES,PRC DELEGATED CO-COMMISSIONING,CLOVER GROUP PRACTICE,39815889,620.35,S9 4QH
Department of Health,NHS Sheffield CCG,28/02/2022,C&M-APMS OOH Opt Outs,PRC DELEGATED CO-COMMISSIONING,CLOVER GROUP PRACTICE,39815889,749.27,S9 4QH
Department of Health,NHS Sheffield CCG,28/02/2022,C&M-APMS PCN DES Participation,PRC DELEGATED CO-COMMISSIONING,CLOVER GROUP PRACTICE,39815889,2290.04,S9 4QH
Department of Health,NHS Sheffield CCG,28/02/2022,C&M-APMS Prem Actual Rent,PRC DELEGATED CO-COMMISSIONING,CLOVER GROUP PRACTICE,39815889,5169.68,S9 4QH
Department of Health,NHS Sheffield CCG,28/02/2022,C&M-APMS Prem Healthcentre Rent,PRC DELEGATED CO-COMMISSIONING,CLOVER GROUP PRACTICE,39815889,51020.3,S9 4QH
Department of Health,NHS Sheffield CCG,28/02/2022,C&M-APMS Prem Notional Rent,PRC DELEGATED CO-COMMISSIONING,CLOVER GROUP PRACTICE,39815889,2804.17,S9 4QH
Department of Health,NHS Sheffield CCG,28/02/2022,C&M-APMS QOF Aspiration,PRC DELEGATED CO-COMMISSIONING,CLOVER GROUP PRACTICE,39815889,9965.6,S9 4QH
Department of Health,NHS Sheffield CCG,28/02/2022,C&M-APMS WEIGHT MANAGEMENT SERVICE,PRC DELEGATED CO-COMMISSIONING,CLOVER GROUP PRACTICE,39815889,23,S9 4QH
Department of Health,NHS Sheffield CCG,28/02/2022,C&M-APMS Contract Value,PRC DELEGATED CO-COMMISSIONING,CLOVER GROUP PRACTICE,39815890,-16263.43,S9 4QH
Department of Health,NHS Sheffield CCG,28/02/2022,C&M-APMS OOH Opt Outs,PRC DELEGATED CO-COMMISSIONING,CLOVER GROUP PRACTICE,39815890,-5984.05,S9 4QH
Department of Health,NHS Sheffield CCG,28/02/2022,C&M-APMS Prem Healthcentre Rent,PRC DELEGATED CO-COMMISSIONING,CLOVER GROUP PRACTICE,39815890,-301.67,S9 4QH
Department of Health,NHS Sheffield CCG,28/02/2022,C&M-PMS Contract Value,PRC DELEGATED CO-COMMISSIONING,CLOVER GROUP PRACTICE,39815890,-594.81,S9 4QH
Department of Health,NHS Sheffield CCG,28/02/2022,C&M-PMS GP Statutory Levy,PRC DELEGATED CO-COMMISSIONING,CLOVER GROUP PRACTICE,39815890,-526.51,S9 4QH
Department of Health,NHS Sheffield CCG,28/02/2022,C&M-PMS Contract Value,PRC DELEGATED CO-COMMISSIONING,BIRLEY HEALTH CENTRE,39815891,68428.51,S12 3BP
Department of Health,NHS Sheffield CCG,28/02/2022,C&M-PMS DES Learn Dsblty Hlth Chk,PRC DELEGATED CO-COMMISSIONING,BIRLEY HEALTH CENTRE,39815891,560,S12 3BP
Department of Health,NHS Sheffield CCG,28/02/2022,C&M-PMS DES Minor Surgery,PRC DELEGATED CO-COMMISSIONING,BIRLEY HEALTH CENTRE,39815891,1760,S12 3BP
Department of Health,NHS Sheffield CCG,28/02/2022,C&M-PMS LONG COVID ES,PRC DELEGATED CO-COMMISSIONING,BIRLEY HEALTH CENTRE,39815891,353.32,S12 3BP
Department of Health,NHS Sheffield CCG,28/02/2022,C&M-PMS PCN DES Participation,PRC DELEGATED CO-COMMISSIONING,BIRLEY HEALTH CENTRE,39815891,1224.59,S12 3BP
Department of Health,NHS Sheffield CCG,28/02/2022,C&M-PMS Prem Notional Rent,PRC DELEGATED CO-COMMISSIONING,BIRLEY HEALTH CENTRE,39815891,7600.58,S12 3BP
Department of Health,NHS Sheffield CCG,28/02/2022,C&M-PMS QOF Aspiration,PRC DELEGATED CO-COMMISSIONING,BIRLEY HEALTH CENTRE,39815891,8434.07,S12 3BP
Department of Health,NHS Sheffield CCG,28/02/2022,C&M-PMS Contract Value,PRC DELEGATED CO-COMMISSIONING,SLOAN MEDICAL CENTRE,39815893,103786.86,S8 0YH
Department of Health,NHS Sheffield CCG,28/02/2022,C&M-PMS DES Learn Dsblty Hlth Chk,PRC DELEGATED CO-COMMISSIONING,SLOAN MEDICAL CENTRE,39815893,1400,S8 0YH
Department of Health,NHS Sheffield CCG,28/02/2022,C&M-PMS DES Minor Surgery,PRC DELEGATED CO-COMMISSIONING,SLOAN MEDICAL CENTRE,39815893,255,S8 0YH
Department of Health,NHS Sheffield CCG,28/02/2022,C&M-PMS LONG COVID ES,PRC DELEGATED CO-COMMISSIONING,SLOAN MEDICAL CENTRE,39815893,556.21,S8 0YH
Department of Health,NHS Sheffield CCG,28/02/2022,C&M-PMS Out of Hours Opt Outs,PRC DELEGATED CO-COMMISSIONING,SLOAN MEDICAL CENTRE,39815893,5.59,S8 0YH
Department of Health,NHS Sheffield CCG,28/02/2022,C&M-PMS PCN DES Participation,PRC DELEGATED CO-COMMISSIONING,SLOAN MEDICAL CENTRE,39815893,1849.06,S8 0YH
Department of Health,NHS Sheffield CCG,28/02/2022,C&M-PMS PCO Locum Adop/Pat/Mat,PRC DELEGATED CO-COMMISSIONING,SLOAN MEDICAL CENTRE,39815893,6555,S8 0YH
Department of Health,NHS Sheffield CCG,28/02/2022,C&M-PMS Prem Notional Rent,PRC DELEGATED CO-COMMISSIONING,SLOAN MEDICAL CENTRE,39815893,747.5,S8 0YH
Department of Health,NHS Sheffield CCG,28/02/2022,C&M-PMS Prem Rates,PRC DELEGATED CO-COMMISSIONING,SLOAN MEDICAL CENTRE,39815893,28318.25,S8 0YH
Department of Health,NHS Sheffield CCG,28/02/2022,C&M-PMS QOF Aspiration,PRC DELEGATED CO-COMMISSIONING,SLOAN MEDICAL CENTRE,39815893,11094.95,S8 0YH
Department of Health,NHS Sheffield CCG,28/02/2022,C&M-PMS Contract Value,PRC DELEGATED CO-COMMISSIONING,SOTHALL MEDICAL CENTRE,39815895,75689.4,S20 1HQ
Department of Health,NHS Sheffield CCG,28/02/2022,C&M-PMS DES Learn Dsblty Hlth Chk,PRC DELEGATED CO-COMMISSIONING,SOTHALL MEDICAL CENTRE,39815895,560,S20 1HQ
Department of Health,NHS Sheffield CCG,28/02/2022,C&M-PMS DES Minor Surgery,PRC DELEGATED CO-COMMISSIONING,SOTHALL MEDICAL CENTRE,39815895,200,S20 1HQ
Department of Health,NHS Sheffield CCG,28/02/2022,C&M-PMS LONG COVID ES,PRC DELEGATED CO-COMMISSIONING,SOTHALL MEDICAL CENTRE,39815895,416.01,S20 1HQ
Department of Health,NHS Sheffield CCG,28/02/2022,C&M-PMS Out of Hours Opt Outs,PRC DELEGATED CO-COMMISSIONING,SOTHALL MEDICAL CENTRE,39815895,74.37,S20 1HQ
Department of Health,NHS Sheffield CCG,28/02/2022,C&M-PMS PCN DES Participation,PRC DELEGATED CO-COMMISSIONING,SOTHALL MEDICAL CENTRE,39815895,1370.05,S20 1HQ
Department of Health,NHS Sheffield CCG,28/02/2022,C&M-PMS Prem Notional Rent,PRC DELEGATED CO-COMMISSIONING,SOTHALL MEDICAL CENTRE,39815895,5237.5,S20 1HQ
Department of Health,NHS Sheffield CCG,28/02/2022,C&M-PMS Prem Water Rates,PRC DELEGATED CO-COMMISSIONING,SOTHALL MEDICAL CENTRE,39815895,243.61,S20 1HQ
Department of Health,NHS Sheffield CCG,28/02/2022,C&M-PMS QOF Aspiration,PRC DELEGATED CO-COMMISSIONING,SOTHALL MEDICAL CENTRE,39815895,9478.91,S20 1HQ
Department of Health,NHS Sheffield CCG,28/02/2022,C&M-PMS WEIGHT MANAGEMENT SERVICE,PRC DELEGATED CO-COMMISSIONING,SOTHALL MEDICAL CENTRE,39815895,138,S20 1HQ
Department of Health,NHS Sheffield CCG,28/02/2022,C&M-PMS Contract Value,PRC DELEGATED CO-COMMISSIONING,SOUTHEY GREEN MEDICAL CENTRE,39815897,26262.99,S5 7QB
Department of Health,NHS Sheffield CCG,28/02/2022,C&M-PMS LONG COVID ES,PRC DELEGATED CO-COMMISSIONING,SOUTHEY GREEN MEDICAL CENTRE,39815897,119.17,S5 7QB
Department of Health,NHS Sheffield CCG,28/02/2022,C&M-PMS Out of Hours Opt Outs,PRC DELEGATED CO-COMMISSIONING,SOUTHEY GREEN MEDICAL CENTRE,39815897,42.12,S5 7QB
Department of Health,NHS Sheffield CCG,28/02/2022,C&M-PMS PCN DES Participation,PRC DELEGATED CO-COMMISSIONING,SOUTHEY GREEN MEDICAL CENTRE,39815897,470.48,S5 7QB
Department of Health,NHS Sheffield CCG,28/02/2022,C&M-PMS Prem Notional Rent,PRC DELEGATED CO-COMMISSIONING,SOUTHEY GREEN MEDICAL CENTRE,39815897,3362.5,S5 7QB
Department of Health,NHS Sheffield CCG,28/02/2022,C&M-PMS QOF Aspiration,PRC DELEGATED CO-COMMISSIONING,SOUTHEY GREEN MEDICAL CENTRE,39815897,2952.99,S5 7QB
Department of Health,NHS Sheffield CCG,28/02/2022,C&M-PMS Contract Value,PRC DELEGATED CO-COMMISSIONING,GREEN CROSS GROUP PRACTICE,39815899,65408.63,S5 0AE
Department of Health,NHS Sheffield CCG,28/02/2022,C&M-PMS DES Learn Dsblty Hlth Chk,PRC DELEGATED CO-COMMISSIONING,GREEN CROSS GROUP PRACTICE,39815899,420,S5 0AE
Department of Health,NHS Sheffield CCG,28/02/2022,C&M-PMS LONG COVID ES,PRC DELEGATED CO-COMMISSIONING,GREEN CROSS GROUP PRACTICE,39815899,322.32,S5 0AE
Department of Health,NHS Sheffield CCG,28/02/2022,C&M-PMS PCN DES Participation,PRC DELEGATED CO-COMMISSIONING,GREEN CROSS GROUP PRACTICE,39815899,798.5,S5 0AE
Department of Health,NHS Sheffield CCG,28/02/2022,C&M-PMS Prem Notional Rent,PRC DELEGATED CO-COMMISSIONING,GREEN CROSS GROUP PRACTICE,39815899,5558.33,S5 0AE
Department of Health,NHS Sheffield CCG,28/02/2022,C&M-PMS QOF Aspiration,PRC DELEGATED CO-COMMISSIONING,GREEN CROSS GROUP PRACTICE,39815899,6643.07,S5 0AE
Department of Health,NHS Sheffield CCG,28/02/2022,C&M-PMS Contract Value,PRC DELEGATED CO-COMMISSIONING,GREEN CROSS GROUP PRACTICE,39815900,-3366.96,S5 0AE
Department of Health,NHS Sheffield CCG,28/02/2022,C&M-PMS GP Statutory Levy,PRC DELEGATED CO-COMMISSIONING,GREEN CROSS GROUP PRACTICE,39815900,-264.46,S5 0AE
Department of Health,NHS Sheffield CCG,28/02/2022,C&M- PCN DES Nursing Associate,PRC DELEGATED CO-COMMISSIONING,DYKES HALL MEDICAL CENTRE,39815901,4699.53,S6 4GQ
Department of Health,NHS Sheffield CCG,28/02/2022,C&M-PCN DES PHARMACY TECHNICIANS,PRC DELEGATED CO-COMMISSIONING,DYKES HALL MEDICAL CENTRE,39815901,3035.67,S6 4GQ
Department of Health,NHS Sheffield CCG,28/02/2022,C&M-PCN DES Trainee Nursing Associate,PRC DELEGATED CO-COMMISSIONING,DYKES HALL MEDICAL CENTRE,39815901,1877.88,S6 4GQ
Department of Health,NHS Sheffield CCG,28/02/2022,C&M-PCN-PMS DES Leadership Payment,PRC DELEGATED CO-COMMISSIONING,DYKES HALL MEDICAL CENTRE,39815901,4050.67,S6 4GQ
Department of Health,NHS Sheffield CCG,28/02/2022,C&M-PMS Contract Value,PRC DELEGATED CO-COMMISSIONING,DYKES HALL MEDICAL CENTRE,39815901,74345.31,S6 4GQ
Department of Health,NHS Sheffield CCG,28/02/2022,C&M-PMS DES Extended Hours Access,PRC DELEGATED CO-COMMISSIONING,DYKES HALL MEDICAL CENTRE,39815901,4281.12,S6 4GQ
Department of Health,NHS Sheffield CCG,28/02/2022,C&M-PMS DES Learn Dsblty Hlth Chk,PRC DELEGATED CO-COMMISSIONING,DYKES HALL MEDICAL CENTRE,39815901,700,S6 4GQ
Department of Health,NHS Sheffield CCG,28/02/2022,C&M-PMS LONG COVID ES,PRC DELEGATED CO-COMMISSIONING,DYKES HALL MEDICAL CENTRE,39815901,389.34,S6 4GQ
Department of Health,NHS Sheffield CCG,28/02/2022,C&M-PMS Out of Hours Opt Outs,PRC DELEGATED CO-COMMISSIONING,DYKES HALL MEDICAL CENTRE,39815901,140.64,S6 4GQ
Department of Health,NHS Sheffield CCG,28/02/2022,C&M-PMS PCN DES Clin Pharmacist,PRC DELEGATED CO-COMMISSIONING,DYKES HALL MEDICAL CENTRE,39815901,14588.17,S6 4GQ
Department of Health,NHS Sheffield CCG,28/02/2022,C&M-PMS PCN DES Clinical Director,PRC DELEGATED CO-COMMISSIONING,DYKES HALL MEDICAL CENTRE,39815901,2188.13,S6 4GQ
Department of Health,NHS Sheffield CCG,28/02/2022,C&M-PMS PCN DES PCN support,LOCAL ENHANCED SERVICES,DYKES HALL MEDICAL CENTRE,39815901,4459.5,S6 4GQ
Department of Health,NHS Sheffield CCG,28/02/2022,C&M-PMS PCN DES Participation,PRC DELEGATED CO-COMMISSIONING,DYKES HALL MEDICAL CENTRE,39815901,1345.01,S6 4GQ
Department of Health,NHS Sheffield CCG,28/02/2022,C&M-PMS PCN DES Physiotherapist,PRC DELEGATED CO-COMMISSIONING,DYKES HALL MEDICAL CENTRE,39815901,6494.84,S6 4GQ
Department of Health,NHS Sheffield CCG,28/02/2022,C&M-PMS PCN DES Soc Prescribing,PRC DELEGATED CO-COMMISSIONING,DYKES HALL MEDICAL CENTRE,39815901,2949,S6 4GQ
Department of Health,NHS Sheffield CCG,28/02/2022,C&M-PMS Prem Notional Rent,PRC DELEGATED CO-COMMISSIONING,DYKES HALL MEDICAL CENTRE,39815901,5527.08,S6 4GQ
Department of Health,NHS Sheffield CCG,28/02/2022,C&M-PMS QOF Aspiration,PRC DELEGATED CO-COMMISSIONING,DYKES HALL MEDICAL CENTRE,39815901,9390.15,S6 4GQ
Department of Health,NHS Sheffield CCG,28/02/2022,C&M-PMS WEIGHT MANAGEMENT SERVICE,PRC DELEGATED CO-COMMISSIONING,DYKES HALL MEDICAL CENTRE,39815901,483,S6 4GQ
Department of Health,NHS Sheffield CCG,28/02/2022,C&M-PMS Contract Value,PRC DELEGATED CO-COMMISSIONING,EAST BANK MEDICAL CENTRE,39815903,54489.74,S2 2AG
Department of Health,NHS Sheffield CCG,28/02/2022,C&M-PMS DES Learn Dsblty Hlth Chk,PRC DELEGATED CO-COMMISSIONING,EAST BANK MEDICAL CENTRE,39815903,840,S2 2AG
Department of Health,NHS Sheffield CCG,28/02/2022,C&M-PMS DES Minor Surgery,PRC DELEGATED CO-COMMISSIONING,EAST BANK MEDICAL CENTRE,39815903,485,S2 2AG
Department of Health,NHS Sheffield CCG,28/02/2022,C&M-PMS LONG COVID ES,PRC DELEGATED CO-COMMISSIONING,EAST BANK MEDICAL CENTRE,39815903,252.65,S2 2AG
Department of Health,NHS Sheffield CCG,28/02/2022,C&M-PMS PCN DES Participation,PRC DELEGATED CO-COMMISSIONING,EAST BANK MEDICAL CENTRE,39815903,945.64,S2 2AG
Department of Health,NHS Sheffield CCG,28/02/2022,C&M-PMS Prem Notional Rent,PRC DELEGATED CO-COMMISSIONING,EAST BANK MEDICAL CENTRE,39815903,10583.33,S2 2AG
Department of Health,NHS Sheffield CCG,28/02/2022,C&M-PMS QOF Aspiration,PRC DELEGATED CO-COMMISSIONING,EAST BANK MEDICAL CENTRE,39815903,5744.23,S2 2AG
Department of Health,NHS Sheffield CCG,28/02/2022,C&M-PMS WEIGHT MANAGEMENT SERVICE,PRC DELEGATED CO-COMMISSIONING,EAST BANK MEDICAL CENTRE,39815903,34.5,S2 2AG
Department of Health,NHS Sheffield CCG,28/02/2022,C&M-PMS Contract Value,PRC DELEGATED CO-COMMISSIONING,DR MEHROTRA & PARTNER,39815905,26303.18,S9 5DH
Department of Health,NHS Sheffield CCG,28/02/2022,C&M-PMS DES Learn Dsblty Hlth Chk,PRC DELEGATED CO-COMMISSIONING,DR MEHROTRA & PARTNER,39815905,420,S9 5DH
Department of Health,NHS Sheffield CCG,28/02/2022,C&M-PMS LONG COVID ES,PRC DELEGATED CO-COMMISSIONING,DR MEHROTRA & PARTNER,39815905,125.56,S9 5DH
Department of Health,NHS Sheffield CCG,28/02/2022,C&M-PMS PCN DES Participation,PRC DELEGATED CO-COMMISSIONING,DR MEHROTRA & PARTNER,39815905,457.08,S9 5DH
Department of Health,NHS Sheffield CCG,28/02/2022,C&M-PMS Prem Notional Rent,PRC DELEGATED CO-COMMISSIONING,DR MEHROTRA & PARTNER,39815905,5157.29,S9 5DH
Department of Health,NHS Sheffield CCG,28/02/2022,C&M-PMS QOF Aspiration,PRC DELEGATED CO-COMMISSIONING,DR MEHROTRA & PARTNER,39815905,2925.04,S9 5DH
Department of Health,NHS Sheffield CCG,28/02/2022,C&M-PMS Contract Value,PRC DELEGATED CO-COMMISSIONING,FALKLAND HOUSE,39815908,28137.51,S11 7PL
Department of Health,NHS Sheffield CCG,28/02/2022,C&M-PMS LONG COVID ES,PRC DELEGATED CO-COMMISSIONING,FALKLAND HOUSE,39815908,164.77,S11 7PL
Department of Health,NHS Sheffield CCG,28/02/2022,C&M-PMS Out of Hours Opt Outs,PRC DELEGATED CO-COMMISSIONING,FALKLAND HOUSE,39815908,1.66,S11 7PL
Department of Health,NHS Sheffield CCG,28/02/2022,C&M-PMS PCN DES Participation,PRC DELEGATED CO-COMMISSIONING,FALKLAND HOUSE,39815908,501.49,S11 7PL
Department of Health,NHS Sheffield CCG,28/02/2022,C&M-PMS Prem Notional Rent,PRC DELEGATED CO-COMMISSIONING,FALKLAND HOUSE,39815908,1904.17,S11 7PL
Department of Health,NHS Sheffield CCG,28/02/2022,C&M-PMS QOF Aspiration,PRC DELEGATED CO-COMMISSIONING,FALKLAND HOUSE,39815908,3362.7,S11 7PL
Department of Health,NHS Sheffield CCG,28/02/2022,C&M-PMS Contract Value,PRC DELEGATED CO-COMMISSIONING,DR MILNER & PARTNERS,39815910,-1265.59,S6 4JQ
Department of Health,NHS Sheffield CCG,28/02/2022,C&M-PMS GP Statutory Levy,PRC DELEGATED CO-COMMISSIONING,DR MILNER & PARTNERS,39815910,-375.55,S6 4JQ
Department of Health,NHS Sheffield CCG,28/02/2022,C&M-PMS Out of Hours Opt Outs,PRC DELEGATED CO-COMMISSIONING,DR MILNER & PARTNERS,39815910,-3827.58,S6 4JQ
Department of Health,NHS Sheffield CCG,28/02/2022,C&M-PMS Prem Notional Rent,PRC DELEGATED CO-COMMISSIONING,DR MILNER & PARTNERS,39815910,-11382,S6 4JQ
Department of Health,NHS Sheffield CCG,28/02/2022,C&M-PMS Contract Value,PRC DELEGATED CO-COMMISSIONING,FIRTH PARK SURGERY,39815912,80907.98,S5 6HH
Department of Health,NHS Sheffield CCG,28/02/2022,C&M-PMS DES Learn Dsblty Hlth Chk,PRC DELEGATED CO-COMMISSIONING,FIRTH PARK SURGERY,39815912,980,S5 6HH
Department of Health,NHS Sheffield CCG,28/02/2022,C&M-PMS LONG COVID ES,PRC DELEGATED CO-COMMISSIONING,FIRTH PARK SURGERY,39815912,413.67,S5 6HH
Department of Health,NHS Sheffield CCG,28/02/2022,C&M-PMS Out of Hours Opt Outs,PRC DELEGATED CO-COMMISSIONING,FIRTH PARK SURGERY,39815912,107.84,S5 6HH
Department of Health,NHS Sheffield CCG,28/02/2022,C&M-PMS PCN DES Participation,PRC DELEGATED CO-COMMISSIONING,FIRTH PARK SURGERY,39815912,1461.7,S5 6HH
Department of Health,NHS Sheffield CCG,28/02/2022,C&M-PMS Prem Notional Rent,PRC DELEGATED CO-COMMISSIONING,FIRTH PARK SURGERY,39815912,4666.67,S5 6HH
Department of Health,NHS Sheffield CCG,28/02/2022,C&M-PMS Prem Rates,PRC DELEGATED CO-COMMISSIONING,FIRTH PARK SURGERY,39815912,1508,S5 6HH
Department of Health,NHS Sheffield CCG,28/02/2022,C&M-PMS Prem Water Rates,PRC DELEGATED CO-COMMISSIONING,FIRTH PARK SURGERY,39815912,133.31,S5 6HH
Department of Health,NHS Sheffield CCG,28/02/2022,C&M-PMS QOF Aspiration,PRC DELEGATED CO-COMMISSIONING,FIRTH PARK SURGERY,39815912,8220.05,S5 6HH
Department of Health,NHS Sheffield CCG,28/02/2022,C&M- PCN DES Nursing Associate,PRC DELEGATED CO-COMMISSIONING,UNIVERSITY HEALTH SERVICE,39815914,4918.94,S3 7QP
Department of Health,NHS Sheffield CCG,28/02/2022,C&M-PCN DES Trainee Nursing Associate,PRC DELEGATED CO-COMMISSIONING,UNIVERSITY HEALTH SERVICE,39815914,3841.34,S3 7QP
Department of Health,NHS Sheffield CCG,28/02/2022,C&M-PCN-PMS DES Leadership Payment,PRC DELEGATED CO-COMMISSIONING,UNIVERSITY HEALTH SERVICE,39815914,3369.83,S3 7QP
Department of Health,NHS Sheffield CCG,28/02/2022,C&M-PMS Contract Value,PRC DELEGATED CO-COMMISSIONING,UNIVERSITY HEALTH SERVICE,39815914,227642.94,S3 7QP
Department of Health,NHS Sheffield CCG,28/02/2022,C&M-PMS DES Extended Hours Access,PRC DELEGATED CO-COMMISSIONING,UNIVERSITY HEALTH SERVICE,39815914,4876.32,S3 7QP
Department of Health,NHS Sheffield CCG,28/02/2022,C&M-PMS LONG COVID ES,PRC DELEGATED CO-COMMISSIONING,UNIVERSITY HEALTH SERVICE,39815914,1675.11,S3 7QP
Department of Health,NHS Sheffield CCG,28/02/2022,C&M-PMS Out of Hours Opt Outs,PRC DELEGATED CO-COMMISSIONING,UNIVERSITY HEALTH SERVICE,39815914,1072.83,S3 7QP
Department of Health,NHS Sheffield CCG,28/02/2022,C&M-PMS PCN DES Clin Pharmacist,PRC DELEGATED CO-COMMISSIONING,UNIVERSITY HEALTH SERVICE,39815914,18231.43,S3 7QP
Department of Health,NHS Sheffield CCG,28/02/2022,C&M-PMS PCN DES Clinical Director,PRC DELEGATED CO-COMMISSIONING,UNIVERSITY HEALTH SERVICE,39815914,2492.34,S3 7QP
Department of Health,NHS Sheffield CCG,28/02/2022,C&M-PMS PCN DES PCN support,LOCAL ENHANCED SERVICES,UNIVERSITY HEALTH SERVICE,39815914,5079.5,S3 7QP
Department of Health,NHS Sheffield CCG,28/02/2022,C&M-PMS PCN DES Participation,PRC DELEGATED CO-COMMISSIONING,UNIVERSITY HEALTH SERVICE,39815914,3676.64,S3 7QP
Department of Health,NHS Sheffield CCG,28/02/2022,C&M-PMS PCN DES Physiotherapist,PRC DELEGATED CO-COMMISSIONING,UNIVERSITY HEALTH SERVICE,39815914,4505.77,S3 7QP
Department of Health,NHS Sheffield CCG,28/02/2022,C&M-PMS PCN DES Soc Prescribing,PRC DELEGATED CO-COMMISSIONING,UNIVERSITY HEALTH SERVICE,39815914,5582.04,S3 7QP
Department of Health,NHS Sheffield CCG,28/02/2022,C&M-PMS Prem Notional Rent,PRC DELEGATED CO-COMMISSIONING,UNIVERSITY HEALTH SERVICE,39815914,15833.33,S3 7QP
Department of Health,NHS Sheffield CCG,28/02/2022,C&M-PMS QOF Aspiration,PRC DELEGATED CO-COMMISSIONING,UNIVERSITY HEALTH SERVICE,39815914,8048.38,S3 7QP
Department of Health,NHS Sheffield CCG,28/02/2022,C&M-PMS WEIGHT MANAGEMENT SERVICE,PRC DELEGATED CO-COMMISSIONING,UNIVERSITY HEALTH SERVICE,39815914,80.5,S3 7QP
Department of Health,NHS Sheffield CCG,28/02/2022,C&M-PMS Contract Value,PRC DELEGATED CO-COMMISSIONING,UNIVERSITY HEALTH SERVICE,39815915,-24074.97,S3 7QP
Department of Health,NHS Sheffield CCG,28/02/2022,C&M-PMS GP Statutory Levy,PRC DELEGATED CO-COMMISSIONING,UNIVERSITY HEALTH SERVICE,39815915,-1380.72,S3 7QP
Department of Health,NHS Sheffield CCG,28/02/2022,C&M-PMS Out of Hours Opt Outs,PRC DELEGATED CO-COMMISSIONING,UNIVERSITY HEALTH SERVICE,39815915,-10736.38,S3 7QP
Department of Health,NHS Sheffield CCG,28/02/2022,C&M-PMS Contract Value,PRC DELEGATED CO-COMMISSIONING,UPWELL STREET SURGERY,39815916,38728.2,S4 8AN
Department of Health,NHS Sheffield CCG,28/02/2022,C&M-PMS DES Learn Dsblty Hlth Chk,PRC DELEGATED CO-COMMISSIONING,UPWELL STREET SURGERY,39815916,2240,S4 8AN
Department of Health,NHS Sheffield CCG,28/02/2022,C&M-PMS LONG COVID ES,PRC DELEGATED CO-COMMISSIONING,UPWELL STREET SURGERY,39815916,191.23,S4 8AN
Department of Health,NHS Sheffield CCG,28/02/2022,C&M-PMS Out of Hours Opt Outs,PRC DELEGATED CO-COMMISSIONING,UPWELL STREET SURGERY,39815916,12.2,S4 8AN
Department of Health,NHS Sheffield CCG,28/02/2022,C&M-PMS PCN DES Participation,PRC DELEGATED CO-COMMISSIONING,UPWELL STREET SURGERY,39815916,680.46,S4 8AN
Department of Health,NHS Sheffield CCG,28/02/2022,C&M-PMS Prem Notional Rent,PRC DELEGATED CO-COMMISSIONING,UPWELL STREET SURGERY,39815916,8552.5,S4 8AN
Department of Health,NHS Sheffield CCG,28/02/2022,C&M-PMS Prem Rates,PRC DELEGATED CO-COMMISSIONING,UPWELL STREET SURGERY,39815916,998,S4 8AN
Department of Health,NHS Sheffield CCG,28/02/2022,C&M-PMS QOF Aspiration,PRC DELEGATED CO-COMMISSIONING,UPWELL STREET SURGERY,39815916,4098.59,S4 8AN
Department of Health,NHS Sheffield CCG,28/02/2022,C&M-PCN-PMS DES Leadership Payment,PRC DELEGATED CO-COMMISSIONING,VALLEY MEDICAL CENTRE,39815918,2316.17,S36 1BX
Department of Health,NHS Sheffield CCG,28/02/2022,C&M-PMS Contract Value,PRC DELEGATED CO-COMMISSIONING,VALLEY MEDICAL CENTRE,39815918,85063.98,S36 1BX
Department of Health,NHS Sheffield CCG,28/02/2022,C&M-PMS DES Extended Hours Access,PRC DELEGATED CO-COMMISSIONING,VALLEY MEDICAL CENTRE,39815918,2477.4,S36 1BX
Department of Health,NHS Sheffield CCG,28/02/2022,C&M-PMS DES Learn Dsblty Hlth Chk,PRC DELEGATED CO-COMMISSIONING,VALLEY MEDICAL CENTRE,39815918,2100,S36 1BX
Department of Health,NHS Sheffield CCG,28/02/2022,C&M-PMS DES Minor Surgery,PRC DELEGATED CO-COMMISSIONING,VALLEY MEDICAL CENTRE,39815918,885,S36 1BX
Department of Health,NHS Sheffield CCG,28/02/2022,C&M-PMS LONG COVID ES,PRC DELEGATED CO-COMMISSIONING,VALLEY MEDICAL CENTRE,39815918,396.48,S36 1BX
Department of Health,NHS Sheffield CCG,28/02/2022,C&M-PMS Out of Hours Opt Outs,PRC DELEGATED CO-COMMISSIONING,VALLEY MEDICAL CENTRE,39815918,102.93,S36 1BX
Department of Health,NHS Sheffield CCG,28/02/2022,C&M-PMS PCN DES Clin Pharmacist,PRC DELEGATED CO-COMMISSIONING,VALLEY MEDICAL CENTRE,39815918,4776.5,S36 1BX
Department of Health,NHS Sheffield CCG,28/02/2022,C&M-PMS PCN DES Clinical Director,PRC DELEGATED CO-COMMISSIONING,VALLEY MEDICAL CENTRE,39815918,1266.23,S36 1BX
Department of Health,NHS Sheffield CCG,28/02/2022,C&M-PMS PCN DES PCN support,LOCAL ENHANCED SERVICES,VALLEY MEDICAL CENTRE,39815918,2580.63,S36 1BX
Department of Health,NHS Sheffield CCG,28/02/2022,C&M-PMS PCN DES Participation,PRC DELEGATED CO-COMMISSIONING,VALLEY MEDICAL CENTRE,39815918,1524.87,S36 1BX
Department of Health,NHS Sheffield CCG,28/02/2022,C&M-PMS PCN DES Physiotherapist,PRC DELEGATED CO-COMMISSIONING,VALLEY MEDICAL CENTRE,39815918,4735.75,S36 1BX
Department of Health,NHS Sheffield CCG,28/02/2022,C&M-PMS PCN DES Soc Prescribing,PRC DELEGATED CO-COMMISSIONING,VALLEY MEDICAL CENTRE,39815918,2650.69,S36 1BX
Department of Health,NHS Sheffield CCG,28/02/2022,C&M-PMS Prem Water Rates,PRC DELEGATED CO-COMMISSIONING,VALLEY MEDICAL CENTRE,39815918,235.34,S36 1BX
Department of Health,NHS Sheffield CCG,28/02/2022,C&M-PMS QOF Aspiration,PRC DELEGATED CO-COMMISSIONING,VALLEY MEDICAL CENTRE,39815918,9844.79,S36 1BX
Department of Health,NHS Sheffield CCG,28/02/2022,C&M-PMS WEIGHT MANAGEMENT SERVICE,PRC DELEGATED CO-COMMISSIONING,VALLEY MEDICAL CENTRE,39815918,46,S36 1BX
Department of Health,NHS Sheffield CCG,28/02/2022,C&M-PMS Contract Value,PRC DELEGATED CO-COMMISSIONING,WOODSEATS MEDICAL CENTRE,39818337,88102.47,S8 0SH
Department of Health,NHS Sheffield CCG,28/02/2022,C&M-PMS DES Learn Dsblty Hlth Chk,PRC DELEGATED CO-COMMISSIONING,WOODSEATS MEDICAL CENTRE,39818337,140,S8 0SH
Department of Health,NHS Sheffield CCG,28/02/2022,C&M-PMS LONG COVID ES,PRC DELEGATED CO-COMMISSIONING,WOODSEATS MEDICAL CENTRE,39818337,443.06,S8 0SH
Department of Health,NHS Sheffield CCG,28/02/2022,C&M-PMS Out of Hours Opt Outs,PRC DELEGATED CO-COMMISSIONING,WOODSEATS MEDICAL CENTRE,39818337,30.9,S8 0SH
Department of Health,NHS Sheffield CCG,28/02/2022,C&M-PMS PCN DES Participation,PRC DELEGATED CO-COMMISSIONING,WOODSEATS MEDICAL CENTRE,39818337,1531.95,S8 0SH
Department of Health,NHS Sheffield CCG,28/02/2022,C&M-PMS Prem Notional Rent,PRC DELEGATED CO-COMMISSIONING,WOODSEATS MEDICAL CENTRE,39818337,11666.67,S8 0SH
Department of Health,NHS Sheffield CCG,28/02/2022,C&M-PMS QOF Aspiration,PRC DELEGATED CO-COMMISSIONING,WOODSEATS MEDICAL CENTRE,39818337,10133.24,S8 0SH
Department of Health,NHS Sheffield CCG,28/02/2022,C&M-PMS WEIGHT MANAGEMENT SERVICE,PRC DELEGATED CO-COMMISSIONING,WOODSEATS MEDICAL CENTRE,39818337,402.5,S8 0SH
Department of Health,NHS Sheffield CCG,28/02/2022,External Consultancy Fees,BEREAVEMENT SERVICE,IDEAL HEALTH CONSULTANTS LTD,39821466,34931.51,GU1 4SJ
Department of Health,NHS Sheffield CCG,28/02/2022,Cont Care-Mental Health (<65),CHC ADULT FULLY FUNDED,RIVERSIDE RESIDENTIAL SERVICES LTD,39821769,41959.43,DN2 5BE
Department of Health,NHS Sheffield CCG,28/02/2022,Clinical&Medical-Voluntary Sector,MENTAL HEALTH SERVICES - OTHER,SOAR COMMUNITY,39821780,36052,S5 9NU
Department of Health,NHS Sheffield CCG,28/02/2022,C&M- PCN DES CARE COORDINATOR,PRC DELEGATED CO-COMMISSIONING,JAUNTY SPRINGS HEALTH CENTRE,39835225,6940.1,S12 3DZ
Department of Health,NHS Sheffield CCG,28/02/2022,C&M-PCN DES DIETICIANS,PRC DELEGATED CO-COMMISSIONING,JAUNTY SPRINGS HEALTH CENTRE,39835225,4609.42,S12 3DZ
Department of Health,NHS Sheffield CCG,28/02/2022,C&M-PCN DES OCCUPATIONAL THERAPISTS,PRC DELEGATED CO-COMMISSIONING,JAUNTY SPRINGS HEALTH CENTRE,39835225,3390.67,S12 3DZ
Department of Health,NHS Sheffield CCG,28/02/2022,C&M-PCN DES PHARMACY TECHNICIANS,PRC DELEGATED CO-COMMISSIONING,JAUNTY SPRINGS HEALTH CENTRE,39835225,5867.95,S12 3DZ
Department of Health,NHS Sheffield CCG,28/02/2022,C&M-PCN-PMS DES Leadership Payment,PRC DELEGATED CO-COMMISSIONING,JAUNTY SPRINGS HEALTH CENTRE,39835225,4475.67,S12 3DZ
Department of Health,NHS Sheffield CCG,28/02/2022,C&M-PMS Contract Value,PRC DELEGATED CO-COMMISSIONING,JAUNTY SPRINGS HEALTH CENTRE,39835225,32965,S12 3DZ
Department of Health,NHS Sheffield CCG,28/02/2022,C&M-PMS DES Extended Hours Access,PRC DELEGATED CO-COMMISSIONING,JAUNTY SPRINGS HEALTH CENTRE,39835225,4196.88,S12 3DZ
Department of Health,NHS Sheffield CCG,28/02/2022,C&M-PMS DES Learn Dsblty Hlth Chk,PRC DELEGATED CO-COMMISSIONING,JAUNTY SPRINGS HEALTH CENTRE,39835225,140,S12 3DZ
Department of Health,NHS Sheffield CCG,28/02/2022,C&M-PMS LONG COVID ES,PRC DELEGATED CO-COMMISSIONING,JAUNTY SPRINGS HEALTH CENTRE,39835225,157.14,S12 3DZ
Department of Health,NHS Sheffield CCG,28/02/2022,C&M-PMS Out of Hours Opt Outs,PRC DELEGATED CO-COMMISSIONING,JAUNTY SPRINGS HEALTH CENTRE,39835225,36.54,S12 3DZ
Department of Health,NHS Sheffield CCG,28/02/2022,C&M-PMS PCN DES Clin Pharmacist,PRC DELEGATED CO-COMMISSIONING,JAUNTY SPRINGS HEALTH CENTRE,39835225,9353.58,S12 3DZ
Department of Health,NHS Sheffield CCG,28/02/2022,C&M-PMS PCN DES Clinical Director,PRC DELEGATED CO-COMMISSIONING,JAUNTY SPRINGS HEALTH CENTRE,39835225,2145.07,S12 3DZ
Department of Health,NHS Sheffield CCG,28/02/2022,C&M-PMS PCN DES Home/RR paramedic,PRC DELEGATED CO-COMMISSIONING,JAUNTY SPRINGS HEALTH CENTRE,39835225,2780.56,S12 3DZ
Department of Health,NHS Sheffield CCG,28/02/2022,C&M-PMS PCN DES PCN support,LOCAL ENHANCED SERVICES,JAUNTY SPRINGS HEALTH CENTRE,39835225,4371.75,S12 3DZ
Department of Health,NHS Sheffield CCG,28/02/2022,C&M-PMS PCN DES Participation,PRC DELEGATED CO-COMMISSIONING,JAUNTY SPRINGS HEALTH CENTRE,39835225,593.33,S12 3DZ
Department of Health,NHS Sheffield CCG,28/02/2022,C&M-PMS PCN DES Physiotherapist,PRC DELEGATED CO-COMMISSIONING,JAUNTY SPRINGS HEALTH CENTRE,39835225,4074.35,S12 3DZ
Department of Health,NHS Sheffield CCG,28/02/2022,C&M-PMS PCN DES Soc Prescribing,PRC DELEGATED CO-COMMISSIONING,JAUNTY SPRINGS HEALTH CENTRE,39835225,4478.73,S12 3DZ
Department of Health,NHS Sheffield CCG,28/02/2022,C&M-PMS PCO Locum Sickness,PRC DELEGATED CO-COMMISSIONING,JAUNTY SPRINGS HEALTH CENTRE,39835225,9035.67,S12 3DZ
Department of Health,NHS Sheffield CCG,28/02/2022,C&M-PMS Prem Notional Rent,PRC DELEGATED CO-COMMISSIONING,JAUNTY SPRINGS HEALTH CENTRE,39835225,3208.33,S12 3DZ
Department of Health,NHS Sheffield CCG,28/02/2022,C&M-PMS Prem Water Rates,PRC DELEGATED CO-COMMISSIONING,JAUNTY SPRINGS HEALTH CENTRE,39835225,142.04,S12 3DZ
Department of Health,NHS Sheffield CCG,28/02/2022,C&M-PMS QOF Aspiration,PRC DELEGATED CO-COMMISSIONING,JAUNTY SPRINGS HEALTH CENTRE,39835225,4210.91,S12 3DZ
Department of Health,NHS Sheffield CCG,28/02/2022,C&M-PMS Contract Value,PRC DELEGATED CO-COMMISSIONING,NETHERGREEN SURGERY,39835227,68701.27,S11 7EJ
Department of Health,NHS Sheffield CCG,28/02/2022,C&M-PMS DES Learn Dsblty Hlth Chk,PRC DELEGATED CO-COMMISSIONING,NETHERGREEN SURGERY,39835227,280,S11 7EJ
Department of Health,NHS Sheffield CCG,28/02/2022,C&M-PMS LONG COVID ES,PRC DELEGATED CO-COMMISSIONING,NETHERGREEN SURGERY,39835227,382.79,S11 7EJ
Department of Health,NHS Sheffield CCG,28/02/2022,C&M-PMS Out of Hours Opt Outs,PRC DELEGATED CO-COMMISSIONING,NETHERGREEN SURGERY,39835227,69.94,S11 7EJ
Department of Health,NHS Sheffield CCG,28/02/2022,C&M-PMS PCN DES Participation,PRC DELEGATED CO-COMMISSIONING,NETHERGREEN SURGERY,39835227,1216.05,S11 7EJ
Department of Health,NHS Sheffield CCG,28/02/2022,C&M-PMS Prem Cost Rent,PRC DELEGATED CO-COMMISSIONING,NETHERGREEN SURGERY,39835227,5057.33,S11 7EJ
Department of Health,NHS Sheffield CCG,28/02/2022,C&M-PMS QOF Aspiration,PRC DELEGATED CO-COMMISSIONING,NETHERGREEN SURGERY,39835227,7008.62,S11 7EJ
Department of Health,NHS Sheffield CCG,28/02/2022,C&M-PMS WEIGHT MANAGEMENT SERVICE,PRC DELEGATED CO-COMMISSIONING,NETHERGREEN SURGERY,39835227,11.5,S11 7EJ
Department of Health,NHS Sheffield CCG,28/02/2022,C&M- PCN DES CARE COORDINATOR,PRC DELEGATED CO-COMMISSIONING,FORGE HEALTH GROUP,39835229,9138.84,S3 9DL
Department of Health,NHS Sheffield CCG,28/02/2022,C&M-PCN DES PHARMACY TECHNICIANS,PRC DELEGATED CO-COMMISSIONING,FORGE HEALTH GROUP,39835229,16651.87,S3 9DL
Department of Health,NHS Sheffield CCG,28/02/2022,C&M-PCN-PMS DES Leadership Payment,PRC DELEGATED CO-COMMISSIONING,FORGE HEALTH GROUP,39835229,7538.67,S3 9DL
Department of Health,NHS Sheffield CCG,28/02/2022,C&M-PMS C&M-APMS PCN DES Physician Assoc,PRC DELEGATED CO-COMMISSIONING,FORGE HEALTH GROUP,39835229,13969.32,S3 9DL
Department of Health,NHS Sheffield CCG,28/02/2022,C&M-PMS Contract Value,PRC DELEGATED CO-COMMISSIONING,FORGE HEALTH GROUP,39835229,129630.81,S3 9DL
Department of Health,NHS Sheffield CCG,28/02/2022,C&M-PMS DES Extended Hours Access,PRC DELEGATED CO-COMMISSIONING,FORGE HEALTH GROUP,39835229,6820.92,S3 9DL
Department of Health,NHS Sheffield CCG,28/02/2022,C&M-PMS DES Learn Dsblty Hlth Chk,PRC DELEGATED CO-COMMISSIONING,FORGE HEALTH GROUP,39835229,1680,S3 9DL
Department of Health,NHS Sheffield CCG,28/02/2022,C&M-PMS DES Minor Surgery,PRC DELEGATED CO-COMMISSIONING,FORGE HEALTH GROUP,39835229,560,S3 9DL
Department of Health,NHS Sheffield CCG,28/02/2022,C&M-PMS LONG COVID ES,PRC DELEGATED CO-COMMISSIONING,FORGE HEALTH GROUP,39835229,608.56,S3 9DL
Department of Health,NHS Sheffield CCG,28/02/2022,C&M-PMS PCN DES Clin Pharmacist,PRC DELEGATED CO-COMMISSIONING,FORGE HEALTH GROUP,39835229,102777.24,S3 9DL
Department of Health,NHS Sheffield CCG,28/02/2022,C&M-PMS PCN DES Clinical Director,PRC DELEGATED CO-COMMISSIONING,FORGE HEALTH GROUP,39835229,3486.25,S3 9DL
Department of Health,NHS Sheffield CCG,28/02/2022,C&M-PMS PCN DES PCN support,LOCAL ENHANCED SERVICES,FORGE HEALTH GROUP,39835229,7105.13,S3 9DL
Department of Health,NHS Sheffield CCG,28/02/2022,C&M-PMS PCN DES Participation,PRC DELEGATED CO-COMMISSIONING,FORGE HEALTH GROUP,39835229,2294.59,S3 9DL
Department of Health,NHS Sheffield CCG,28/02/2022,C&M-PMS PCN DES Physiotherapist,PRC DELEGATED CO-COMMISSIONING,FORGE HEALTH GROUP,39835229,16824.55,S3 9DL
Department of Health,NHS Sheffield CCG,28/02/2022,C&M-PMS PCN DES Soc Prescribing,PRC DELEGATED CO-COMMISSIONING,FORGE HEALTH GROUP,39835229,53210.4,S3 9DL
Department of Health,NHS Sheffield CCG,28/02/2022,C&M-PMS Prem Healthcentre Rent,PRC DELEGATED CO-COMMISSIONING,FORGE HEALTH GROUP,39835229,35542.67,S3 9DL
Department of Health,NHS Sheffield CCG,28/02/2022,C&M-PMS Prem Notional Rent,PRC DELEGATED CO-COMMISSIONING,FORGE HEALTH GROUP,39835229,9891.67,S3 9DL
Department of Health,NHS Sheffield CCG,28/02/2022,C&M-PMS QOF Aspiration,PRC DELEGATED CO-COMMISSIONING,FORGE HEALTH GROUP,39835229,12932.51,S3 9DL
Department of Health,NHS Sheffield CCG,28/02/2022,C&M-PMS WEIGHT MANAGEMENT SERVICE,PRC DELEGATED CO-COMMISSIONING,FORGE HEALTH GROUP,39835229,80.5,S3 9DL
Department of Health,NHS Sheffield CCG,28/02/2022,C&M-PMS Contract Value,PRC DELEGATED CO-COMMISSIONING,BURNGREAVE SURGERY,39835230,62409.08,S3 9DA
Department of Health,NHS Sheffield CCG,28/02/2022,C&M-PMS DES Learn Dsblty Hlth Chk,PRC DELEGATED CO-COMMISSIONING,BURNGREAVE SURGERY,39835230,1400,S3 9DA
Department of Health,NHS Sheffield CCG,28/02/2022,C&M-PMS DES Minor Surgery,PRC DELEGATED CO-COMMISSIONING,BURNGREAVE SURGERY,39835230,200,S3 9DA
Department of Health,NHS Sheffield CCG,28/02/2022,C&M-PMS LONG COVID ES,PRC DELEGATED CO-COMMISSIONING,BURNGREAVE SURGERY,39835230,284.06,S3 9DA
Department of Health,NHS Sheffield CCG,28/02/2022,C&M-PMS Out of Hours Opt Outs,PRC DELEGATED CO-COMMISSIONING,BURNGREAVE SURGERY,39835230,23.69,S3 9DA
Department of Health,NHS Sheffield CCG,28/02/2022,C&M-PMS PCN DES Participation,PRC DELEGATED CO-COMMISSIONING,BURNGREAVE SURGERY,39835230,1072.06,S3 9DA
Department of Health,NHS Sheffield CCG,28/02/2022,C&M-PMS Prem Notional Rent,PRC DELEGATED CO-COMMISSIONING,BURNGREAVE SURGERY,39835230,6622.92,S3 9DA
Department of Health,NHS Sheffield CCG,28/02/2022,C&M-PMS QOF Aspiration,PRC DELEGATED CO-COMMISSIONING,BURNGREAVE SURGERY,39835230,5671.9,S3 9DA
Department of Health,NHS Sheffield CCG,28/02/2022,C&M-PMS WEIGHT MANAGEMENT SERVICE,PRC DELEGATED CO-COMMISSIONING,BURNGREAVE SURGERY,39835230,23,S3 9DA
Department of Health,NHS Sheffield CCG,28/02/2022,C&M-PMS Contract Value,PRC DELEGATED CO-COMMISSIONING,DEEPCAR MEDICAL CENTRE,39835231,43351.63,S36 2RA
Department of Health,NHS Sheffield CCG,28/02/2022,C&M-PMS DES Learn Dsblty Hlth Chk,PRC DELEGATED CO-COMMISSIONING,DEEPCAR MEDICAL CENTRE,39835231,6020,S36 2RA
Department of Health,NHS Sheffield CCG,28/02/2022,C&M-PMS LONG COVID ES,PRC DELEGATED CO-COMMISSIONING,DEEPCAR MEDICAL CENTRE,39835231,217.98,S36 2RA
Department of Health,NHS Sheffield CCG,28/02/2022,C&M-PMS Out of Hours Opt Outs,PRC DELEGATED CO-COMMISSIONING,DEEPCAR MEDICAL CENTRE,39835231,82.49,S36 2RA
Department of Health,NHS Sheffield CCG,28/02/2022,C&M-PMS PCN DES Participation,PRC DELEGATED CO-COMMISSIONING,DEEPCAR MEDICAL CENTRE,39835231,784.44,S36 2RA
Department of Health,NHS Sheffield CCG,28/02/2022,C&M-PMS Prem Healthcentre Rent,PRC DELEGATED CO-COMMISSIONING,DEEPCAR MEDICAL CENTRE,39835231,31188.15,S36 2RA
Department of Health,NHS Sheffield CCG,28/02/2022,C&M-PMS QOF Aspiration,PRC DELEGATED CO-COMMISSIONING,DEEPCAR MEDICAL CENTRE,39835231,4646.77,S36 2RA
Department of Health,NHS Sheffield CCG,28/02/2022,C&M-PMS WEIGHT MANAGEMENT SERVICE,PRC DELEGATED CO-COMMISSIONING,DEEPCAR MEDICAL CENTRE,39835231,46,S36 2RA
Department of Health,NHS Sheffield CCG,28/02/2022,C&M-PMS Contract Value,PRC DELEGATED CO-COMMISSIONING,DR MILNER & PARTNERS,39835232,81176.13,S6 4JQ
Department of Health,NHS Sheffield CCG,28/02/2022,C&M-PMS DES Learn Dsblty Hlth Chk,PRC DELEGATED CO-COMMISSIONING,DR MILNER & PARTNERS,39835232,2100,S6 4JQ
Department of Health,NHS Sheffield CCG,28/02/2022,C&M-PMS DES Minor Surgery,PRC DELEGATED CO-COMMISSIONING,DR MILNER & PARTNERS,39835232,1170,S6 4JQ
Department of Health,NHS Sheffield CCG,28/02/2022,C&M-PMS LONG COVID ES,PRC DELEGATED CO-COMMISSIONING,DR MILNER & PARTNERS,39835232,442.11,S6 4JQ
Department of Health,NHS Sheffield CCG,28/02/2022,C&M-PMS Out of Hours Opt Outs,PRC DELEGATED CO-COMMISSIONING,DR MILNER & PARTNERS,39835232,39.43,S6 4JQ
Department of Health,NHS Sheffield CCG,28/02/2022,C&M-PMS PCN DES Participation,PRC DELEGATED CO-COMMISSIONING,DR MILNER & PARTNERS,39835232,1456.05,S6 4JQ
Department of Health,NHS Sheffield CCG,28/02/2022,C&M-PMS Prem Actual Rent,PRC DELEGATED CO-COMMISSIONING,DR MILNER & PARTNERS,39835232,11382,S6 4JQ
Department of Health,NHS Sheffield CCG,28/02/2022,C&M-PMS Prem Notional Rent,PRC DELEGATED CO-COMMISSIONING,DR MILNER & PARTNERS,39835232,15996.59,S6 4JQ
Department of Health,NHS Sheffield CCG,28/02/2022,C&M-PMS Prem Rates,PRC DELEGATED CO-COMMISSIONING,DR MILNER & PARTNERS,39835232,1944,S6 4JQ
Department of Health,NHS Sheffield CCG,28/02/2022,C&M-PMS Prem Water Rates,PRC DELEGATED CO-COMMISSIONING,DR MILNER & PARTNERS,39835232,299.28,S6 4JQ
Department of Health,NHS Sheffield CCG,28/02/2022,C&M-PMS QOF Aspiration,PRC DELEGATED CO-COMMISSIONING,DR MILNER & PARTNERS,39835232,7550.33,S6 4JQ
Department of Health,NHS Sheffield CCG,28/02/2022,C&M-PMS WEIGHT MANAGEMENT SERVICE,PRC DELEGATED CO-COMMISSIONING,DR MILNER & PARTNERS,39835232,46,S6 4JQ
Department of Health,NHS Sheffield CCG,28/02/2022,C&M-PMS Contract Value,PRC DELEGATED CO-COMMISSIONING,DOVERCOURT SURGERY,39835233,80923.47,S2 5FX
Department of Health,NHS Sheffield CCG,28/02/2022,C&M-PMS DES Learn Dsblty Hlth Chk,PRC DELEGATED CO-COMMISSIONING,DOVERCOURT SURGERY,39835233,980,S2 5FX
Department of Health,NHS Sheffield CCG,28/02/2022,C&M-PMS DES Minor Surgery,PRC DELEGATED CO-COMMISSIONING,DOVERCOURT SURGERY,39835233,520,S2 5FX
Department of Health,NHS Sheffield CCG,28/02/2022,C&M-PMS LONG COVID ES,PRC DELEGATED CO-COMMISSIONING,DOVERCOURT SURGERY,39835233,362.38,S2 5FX
Department of Health,NHS Sheffield CCG,28/02/2022,C&M-PMS Out of Hours Opt Outs,PRC DELEGATED CO-COMMISSIONING,DOVERCOURT SURGERY,39835233,96.37,S2 5FX
Department of Health,NHS Sheffield CCG,28/02/2022,C&M-PMS PCN DES Participation,PRC DELEGATED CO-COMMISSIONING,DOVERCOURT SURGERY,39835233,1436.25,S2 5FX
Department of Health,NHS Sheffield CCG,28/02/2022,C&M-PMS PCO Locum Adop/Pat/Mat,PRC DELEGATED CO-COMMISSIONING,DOVERCOURT SURGERY,39835233,7540.68,S2 5FX
Department of Health,NHS Sheffield CCG,28/02/2022,C&M-PMS PCO Locum Sickness,PRC DELEGATED CO-COMMISSIONING,DOVERCOURT SURGERY,39835233,3503.04,S2 5FX
Department of Health,NHS Sheffield CCG,28/02/2022,C&M-PMS Prem Actual Rent,PRC DELEGATED CO-COMMISSIONING,DOVERCOURT SURGERY,39835233,14108.33,S2 5FX
Department of Health,NHS Sheffield CCG,28/02/2022,C&M-PMS Prem Notional Rent,PRC DELEGATED CO-COMMISSIONING,DOVERCOURT SURGERY,39835233,2158.33,S2 5FX
Department of Health,NHS Sheffield CCG,28/02/2022,C&M-PMS Prem Water Rates,PRC DELEGATED CO-COMMISSIONING,DOVERCOURT SURGERY,39835233,146.15,S2 5FX
Department of Health,NHS Sheffield CCG,28/02/2022,C&M-PMS QOF Aspiration,PRC DELEGATED CO-COMMISSIONING,DOVERCOURT SURGERY,39835233,8804.83,S2 5FX
Department of Health,NHS Sheffield CCG,28/02/2022,C&M-PMS WEIGHT MANAGEMENT SERVICE,PRC DELEGATED CO-COMMISSIONING,DOVERCOURT SURGERY,39835233,690,S2 5FX
Department of Health,NHS Sheffield CCG,28/02/2022,Hcare Srv Rec Fdtn Trust-Contract Baseline,ACUTE COMMISSIONING,BARNSLEY HOSPITAL NHS FOUNDATION TRUST,39836615,113425.15,S75 2EP
Department of Health,NHS Sheffield CCG,28/02/2022,Hcare Srv Rec Fdtn Trust-Contract Baseline,ACUTE COMMISSIONING,CHESTERFIELD ROYAL HOSPITAL NHS FOUNDATION TRUST,39836634,375326.75,S44 5BL
Department of Health,NHS Sheffield CCG,28/02/2022,Hcare Srv Rec Fdtn Trust-Contract Baseline,ACUTE COMMISSIONING,DONCASTER AND BASSETLAW HOSPITALS NHS FOUNDATION TRUST,39836638,47889.62,WF3 1WE
Department of Health,NHS Sheffield CCG,28/02/2022,Hcare Srv Rec Fdtn Trust-Contract Baseline,ACUTE CHILDRENS SERVICES,SHEFFIELD CHILDRENS NHS FOUNDATION TRUST,39836654,3774111,S10 2TH
Department of Health,NHS Sheffield CCG,28/02/2022,Hcare Srv Rec Fdtn Trust-Contract Baseline,ACUTE CHILDRENS SERVICES,SHEFFIELD CHILDRENS NHS FOUNDATION TRUST,39836658,1583732.05,S10 2TH
Department of Health,NHS Sheffield CCG,28/02/2022,Hcare Srv Rec Fdtn Trust-Contract Baseline,MENTAL HEALTH CONTRACTS,SHEFFIELD HEALTH & SOCIAL CARE NHS FOUNDATION TRUST,39836666,8262271,S10 3TH
Department of Health,NHS Sheffield CCG,28/02/2022,Hcare Srv Rec Fdtn Trust-Contract Baseline,MENTAL HEALTH CONTRACTS,SHEFFIELD HEALTH & SOCIAL CARE NHS FOUNDATION TRUST,39836675,852717.15,S10 3TH
Department of Health,NHS Sheffield CCG,28/02/2022,Hcare Srv Rec Fdtn Trust-Contract Baseline,ACUTE COMMISSIONING,SHEFFIELD TEACHING HOSPITALS NHS FOUNDATION TRUST,39836682,38214347.04,S5 7AU
Department of Health,NHS Sheffield CCG,28/02/2022,Hcare Srv Rec Fdtn Trust-Contract Baseline,ACUTE COMMISSIONING,SHEFFIELD TEACHING HOSPITALS NHS FOUNDATION TRUST,39836690,4373782.32,S5 7AU
Department of Health,NHS Sheffield CCG,28/02/2022,Hcare Srv Rec NHS Trust-Contract Baseline,ACUTE COMMISSIONING,LEEDS TEACHING HOSPITALS NHS TRUST,39836695,48657.77,LS9 7TF
Department of Health,NHS Sheffield CCG,28/02/2022,Hcare Srv Rec Fdtn Trust-Contract Baseline,ACUTE COMMISSIONING,ROTHERHAM NHS FOUNDATION TRUST,39836707,537486.34,S60 2UD
Department of Health,NHS Sheffield CCG,28/02/2022,Clinical&Medical-Serv Recd-F Trsts,BEREAVEMENT SERVICE,ROTHERHAM NHS FOUNDATION TRUST,39836721,59467.46,S60 2UD
Department of Health,NHS Sheffield CCG,28/02/2022,Hcare Srv Rec NHS Trust-Contract Baseline,MENTAL HEALTH CONTRACTS,YORKSHIRE AMBULANCE SERVICE NHS TRUST,39836740,25795.8,WF2 0XQ
Department of Health,NHS Sheffield CCG,28/02/2022,Hcare Srv Rec NHS Trust-Contract Baseline,AMBULANCE SERVICES,YORKSHIRE AMBULANCE SERVICE NHS TRUST,39836750,1954214.42,WF2 0XQ
Department of Health,NHS Sheffield CCG,28/02/2022,Hcare Srv Rec NHS Trust-Contract Baseline,PATIENT TRANSPORT,YORKSHIRE AMBULANCE SERVICE NHS TRUST,39836765,307088.05,WF2 0XQ
Department of Health,NHS Sheffield CCG,28/02/2022,Hcare Srv Rec NHS Trust-Contract Baseline,NHS 111,YORKSHIRE AMBULANCE SERVICE NHS TRUST,39836789,150839.29,WF2 0XQ
Department of Health,NHS Sheffield CCG,28/02/2022,Clinical&Medical-Serv Recd-F Trsts,BEREAVEMENT SERVICE,HUMBER TEACHING NHS FOUNDATION TRUST,39836797,51511.01,WF3 1WE
Department of Health,NHS Sheffield CCG,28/02/2022,C&M-GMS LES Translation Fees,INTERPRETING SERVICES,LANGUAGELINE SOLUTIONS,39842288,29776.68,E14 5NR
Department of Health,NHS Sheffield CCG,28/02/2022,C&M-APMS DES Immediate&1st Response,LOCAL ENHANCED SERVICES,PRIMARY CARE SHEFFIELD LTD,39842300,30543,S12 3GH
Department of Health,NHS Sheffield CCG,28/02/2022,C&M-APMS DES Immediate&1st Response,LOCAL ENHANCED SERVICES,PRIMARY CARE SHEFFIELD LTD,39842302,26562,S12 3GH
Department of Health,NHS Sheffield CCG,28/02/2022,Clinical&Medical-Independent Sector,ACUTE COMMISSIONING,CLAREMONT HOSPITAL,39842310,70529,S10 5UB
Department of Health,NHS Sheffield CCG,28/02/2022,C&M-APMS DES Extended Hours Access,GP FORWARD VIEW,PRIMARY CARE SHEFFIELD LTD,39842317,309441.67,S12 3GH
Department of Health,NHS Sheffield CCG,28/02/2022,C&M-GMS LES Basket of Procedures,LOCAL ENHANCED SERVICES,PRIMARY CARE SHEFFIELD LTD,39842322,53558.33,S12 3GH
Department of Health,NHS Sheffield CCG,28/02/2022,CLINICAL AND MEDICAL GOODS & SERVICES - HOSPITAL DISCHARGE PROGRAMME,COMMUNITY SERVICES,SHEFFIELD CHURCHES COUNCIL FOR COMMUNITY CARE,39842326,81360,S4 7UQ
Department of Health,NHS Sheffield CCG,28/02/2022,Computer Software/License,BEREAVEMENT SERVICE,ASEPTIKA LTD,39842329,91644,PE27 4AA
Department of Health,NHS Sheffield CCG,28/02/2022,Clinical&Medical-Independent Sector,MENTAL HEALTH SERVICES - OTHER,PRIMARY CARE SHEFFIELD LTD,39842335,57437,S12 3GH
Department of Health,NHS Sheffield CCG,28/02/2022,C&M-APMS DES Immediate&1st Response,LOCAL ENHANCED SERVICES,PRIMARY CARE SHEFFIELD LTD,39842338,27423.28,S12 3GH
Department of Health,NHS Sheffield CCG,28/02/2022,C&M-WAF extra session - staff,PRC DELEGATED CO-COMMISSIONING,PRIMARY CARE SHEFFIELD LTD,39842350,33437.78,S12 3GH
Department of Health,NHS Sheffield CCG,28/02/2022,Other Gen Supplies & Srv,BEREAVEMENT SERVICE,PALMS ROW HEALTHCARE LTD,39860611,36632,S4 8FA
Department of Health,NHS Sheffield CCG,28/02/2022,Clinical&Medical-Othe Public Sector,MENTAL HEALTH SERVICES - OTHER,UNIVERSITY OF SHEFFIELD,39860685,35797.32,S10 2TN
Department of Health,NHS Sheffield CCG,28/02/2022,Clinical&Medical-Serv Recd-F Trsts,BEREAVEMENT SERVICE,SHEFFIELD TEACHING HOSPITALS NHS FOUNDATION TRUST,39860694,69100,S5 7AU
Department of Health,NHS Sheffield CCG,28/02/2022,Clinical&Medical-Othe Public Sector,COMMUNITY SERVICES,SHEFFIELD CITY COUNCIL,39860720,354427.39,S1 2HH
Department of Health,NHS Sheffield CCG,28/02/2022,Soc Care-Other Soc Care,COMMISSIONING - NON ACUTE,SHEFFIELD CITY COUNCIL,39860720,1001666.61,S1 2HH
Department of Health,NHS Sheffield CCG,28/02/2022,External Consultancy Fees,CLINICAL LEADS,CAJA LTD,39860737,264000,ST5 5NB
Department of Health,NHS Sheffield CCG,28/02/2022,External Consultancy Fees,CLINICAL LEADS,CAJA LTD,39860751,66000,ST5 5NB
Department of Health,NHS Sheffield CCG,28/02/2022,External Consultancy Fees,BEREAVEMENT SERVICE,ATTAIN HEALTH MANAGEMENT SERVICES LTD,39860817,47940,WC1V 7HZ
Department of Health,NHS Sheffield CCG,28/02/2022,Clinical&Medical-Serv Recd-F Trsts,BEREAVEMENT SERVICE,SHEFFIELD TEACHING HOSPITALS NHS FOUNDATION TRUST,39860879,58991,S5 7AU
Department of Health,NHS Sheffield CCG,28/02/2022,Clinical&Medical-Othe Public Sector,BEREAVEMENT SERVICE,ROTHERHAM METROPOLITAN BOROUGH COUNCIL,39860886,27000,S60 1AE
Department of Health,NHS Sheffield CCG,28/02/2022,Voids and Subsidies,PRC DELEGATED CO-COMMISSIONING,COMMUNITY HEALTH PARTNERSHIPS LTD,39860972,39478.29,M1 3LD
Department of Health,NHS Sheffield CCG,28/02/2022,Voids and Subsidies,RECHARGES NHS PROPERTY SERVICES LTD,COMMUNITY HEALTH PARTNERSHIPS LTD,39860972,112844.21,M1 3LD
Department of Health,NHS Sheffield CCG,28/02/2022,Cont Care-Physical Disab (65+),CHC ADULT FULLY FUNDED,SHEFFIELD CITY COUNCIL,39881567,953082.27,S1 1UJ
Department of Health,NHS Sheffield CCG,28/02/2022,Cont Care- Children,CHC CHILDREN,SHEFFIELD CITY COUNCIL,39881576,121735.05,S1 1UJ
Department of Health,NHS Sheffield CCG,28/02/2022,Cont Care- Adult 100% Fully Funded,CHC ADULT FULLY FUNDED,SOUTH YORKSHIRE HOUSING ASSOCIATION LTD,39881583,25500,S1 4HF
Department of Health,NHS Sheffield CCG,28/02/2022,Cont Care- Adult 100% Fully Funded,CHC ADULT FULLY FUNDED,SOUTH YORKSHIRE HOUSING ASSOCIATION LTD,39881586,46763.59,S1 4HF
Department of Health,NHS Sheffield CCG,28/02/2022,Clinical&Medical-Independent Sector,MENTAL HEALTH CONTRACTS,SUSASH GB LTD T/A EAGLE HOUSE,39881588,30091.75,S11 8NP
Department of Health,NHS Sheffield CCG,28/02/2022,Clinical&Medical-Independent Sector,MENTAL HEALTH CONTRACTS,SOUTH YORKSHIRE HOUSING ASSOCIATION LTD,39881590,34434.83,S1 4HF
Department of Health,NHS Sheffield CCG,28/02/2022,External Consultancy Fees,BEREAVEMENT SERVICE,ATTAIN HEALTH MANAGEMENT SERVICES LTD,39890147,39780,WC1V 7HZ
Department of Health,NHS Sheffield CCG,28/02/2022,Cont Care-Funded Nursing Care Allow,FUNDED NURSING CARE,ROSEBERRY CARE CENTRES,39895344,31651.84,S5 6AB
Department of Health,NHS Sheffield CCG,28/02/2022,Cont Care-Funded Nursing Care Allow,FUNDED NURSING CARE,BONDCARE,39895350,28434.8,NW4 4EF
Department of Health,NHS Sheffield CCG,28/02/2022,Cont Care-Physical Disab (<65),CHC ADULT FULLY FUNDED,SOUTH YORKSHIRE HOUSING ASSOCIATION LTD,39895365,64710.7,S35 1RQ
Department of Health,NHS Sheffield CCG,28/02/2022,Cont Care-Physical Disab (<65),CHC ADULT FULLY FUNDED,SOUTH YORKSHIRE HOUSING ASSOCIATION LTD,39895366,38012.47,S35 1RQ
Department of Health,NHS Sheffield CCG,28/02/2022,Cont Care-Physical Disab (<65),CHC ADULT FULLY FUNDED,FAIRWINDS HEALTH CARE LTD,39895370,28580.76,S61 1AJ
Department of Health,NHS Sheffield CCG,28/02/2022,Cont Care-Physical Disab (<65),CHC ADULT FULLY FUNDED,FOUR SEASONS HEALTH CARE LTD,39895373,32612,DL1 1RW
Department of Health,NHS Sheffield CCG,28/02/2022,Cont Care-Physical Disab (<65),CHC ADULT FULLY FUNDED,LONGLEY HEALTH CARE LTD,39895376,65004.96,S5 7JZ
Department of Health,NHS Sheffield CCG,28/02/2022,Cont Care-Physical Disab (<65),CHC ADULT FULLY FUNDED,LONGLEY HEALTH CARE LTD,39895377,67282.28,S5 7JZ
Department of Health,NHS Sheffield CCG,28/02/2022,Cont Care-Physical Disab (<65),CHC ADULT FULLY FUNDED,SCARSDALE GRANGE NURSING HOME,39895386,58754.17,S8 9EQ
Department of Health,NHS Sheffield CCG,28/02/2022,Cont Care-Physical Disab (<65),CHC ADULT FULLY FUNDED,SCARSDALE GRANGE NURSING HOME,39895387,71680.86,S8 9EQ
Department of Health,NHS Sheffield CCG,28/02/2022,Cont Care-Physical Disab (<65),CHC ADULT FULLY FUNDED,SEVEN HILLS NURSING HOME,39895388,35259.8,S11 9AA
Department of Health,NHS Sheffield CCG,28/02/2022,Cont Care-Physical Disab (<65),CHC ADULT FULLY FUNDED,WILLOWBECK HEALTH CARE LTD,39895393,102061.28,S4 8AR
Department of Health,NHS Sheffield CCG,28/02/2022,Cont Care-Physical Disab (<65),CHC ADULT FULLY FUNDED,WILLOWBECK HEALTH CARE LTD,39895394,55620.88,S4 8AR
Department of Health,NHS Sheffield CCG,28/02/2022,Cont Care-Physical Disab (<65),CHC ADULT FULLY FUNDED,BONDCARE,39895411,26434.4,NW4 4EF
Department of Health,NHS Sheffield CCG,28/02/2022,Cont Care-Physical Disab (<65),CHC ADULT FULLY FUNDED,HORIZON CARE HOMES LTD,39895415,91745.15,S25 3QA
Department of Health,NHS Sheffield CCG,28/02/2022,Cont Care-Physical Disab (<65),CHC ADULT FULLY FUNDED,HORIZON CARE HOMES LTD,39895419,26404.77,S25 3QA
Department of Health,NHS Sheffield CCG,28/02/2022,Cont Care-Physical Disab (<65),CHC ADULT FULLY FUNDED,HORIZON CARE HOMES LTD,39895420,60394.56,S25 3QA
Department of Health,NHS Sheffield CCG,28/02/2022,Cont Care-Physical Disab (<65),CHC ADULT FULLY FUNDED,INLET LTD,39895423,54598.36,S48NB
Department of Health,NHS Sheffield CCG,28/02/2022,Clinical&Medical-Othe Public Sector,LEARNING DIFFICULTIES,SHEFFIELD CITY COUNCIL,39906305,1111000,S1 2HH
Department of Health,NHS Sheffield CCG,28/02/2022,Clinical&Medical-Serv Recd-F Trsts,BEREAVEMENT SERVICE,ROTHERHAM NHS FOUNDATION TRUST,39906337,184000,S60 2UD
Department of Health,NHS Sheffield CCG,28/02/2022,CLINICAL AND MEDICAL GOODS & SERVICES - HOSPITAL DISCHARGE PROGRAMME,HOSPICES,ST LUKES HOSPICE,39906373,425520,S11 9NE
Department of Health,NHS Sheffield CCG,28/02/2022,Hcare Srv Rec Fdtn Trust-Non Contract,ACUTE COMMISSIONING,SHEFFIELD TEACHING HOSPITALS NHS FOUNDATION TRUST,39906393,250000,S5 7AU
Department of Health,NHS Sheffield CCG,28/02/2022,Clinical&Medical-Voluntary Sector,HOSPICES,ST LUKES HOSPICE,39906398,124000,S11 9NE
Department of Health,NHS Sheffield CCG,28/02/2022,Clinical&Medical-Voluntary Sector,HOSPICES,ST LUKES HOSPICE,39906411,150000,S11 9NE
Department of Health,NHS Sheffield CCG,28/02/2022,Clinical&Medical-Othe Public Sector,COMMUNITY SERVICES,SHEFFIELD CITY COUNCIL,39906439,150416.7,S1 1UJ
Department of Health,NHS Sheffield CCG,28/02/2022,Clinical&Medical-Othe Public Sector,MENTAL HEALTH SERVICES - COLLABORATIVE COMMISSIONING,SHEFFIELD CITY COUNCIL,39906439,83669.09,S1 1UJ
Department of Health,NHS Sheffield CCG,28/02/2022,Clinical&Medical-Othe Public Sector,REABLEMENT,SHEFFIELD CITY COUNCIL,39906439,21808.67,S1 1UJ
Department of Health,NHS Sheffield CCG,28/02/2022,Clinical&Medical-Othe Public Sector,SAFEGUARDING,SHEFFIELD CITY COUNCIL,39906439,16596.33,S1 1UJ
Department of Health,NHS Sheffield CCG,28/02/2022,Cont Care-Physical Disab (65+),CHC ADULT FULLY FUNDED,SHEFFIELD CITY COUNCIL,39906439,62941.09,S1 1UJ
Department of Health,NHS Sheffield CCG,28/02/2022,Soc Care-Joint H&C Teams/Working,INTERMEDIATE CARE,SHEFFIELD CITY COUNCIL,39906439,151447.58,S1 1UJ
Department of Health,NHS Sheffield CCG,28/02/2022,Soc Care-Other Soc Care,COMMISSIONING - NON ACUTE,SHEFFIELD CITY COUNCIL,39906439,1635250,S1 1UJ
Department of Health,NHS Sheffield CCG,28/02/2022,Soc Care-Support Prim Care,COMMUNITY SERVICES,SHEFFIELD CITY COUNCIL,39906439,64166.67,S1 1UJ
Department of Health,NHS Sheffield CCG,28/02/2022,Clinical&Medical-Voluntary Sector,CHILD AND ADOLESCENT MENTAL HEALTH,SHEFFIELD FUTURES,39911153,21333.34,S1 4GE
Department of Health,NHS Sheffield CCG,28/02/2022,Charges from CSU,BUSINESS INFORMATICS,NHS NORTH OF ENGLAND CSU,39925217,26554.67,WF3 1WE
Department of Health,NHS Sheffield CCG,28/02/2022,C&M-APMS DES Immediate&1st Response,LOCAL ENHANCED SERVICES,PRIMARY CARE SHEFFIELD LTD,39925242,29810,S12 3GH
Department of Health,NHS Sheffield CCG,28/02/2022,C&M-APMS DES Immediate&1st Response,LOCAL ENHANCED SERVICES,PRIMARY CARE SHEFFIELD LTD,39925403,-29810,S12 3GH
Department of Health,NHS Sheffield CCG,28/02/2022,Clinical&Medical-Othe Public Sector,BEREAVEMENT SERVICE,BARNSLEY METROPOLITAN BOROUGH COUNCIL,39925690,35000,S70 2TA
Department of Health,NHS Sheffield CCG,28/02/2022,Clinical&Medical-Serv Recd-F Trsts,BEREAVEMENT SERVICE,DONCASTER AND BASSETLAW HOSPITALS NHS FOUNDATION TRUST,39925716,25000,WF3 1WE
Department of Health,NHS Sheffield CCG,28/02/2022,Participation Fees,BEREAVEMENT SERVICE,SOUTH YORKSHIRE COMMUNITY FOUNDATION LTD,39941141,87000,S9 2RX
Department of Health,NHS Sheffield CCG,28/02/2022,Clinical&Medical-Serv Recd-Oth NHS,BEREAVEMENT SERVICE,NHS MIDLANDS AND LANCASHIRE CSU,39941151,43400,WF3 1WE
Department of Health,NHS Sheffield CCG,28/02/2022,Clinical&Medical-Serv Recd-F Trsts,BEREAVEMENT SERVICE,SHEFFIELD TEACHING HOSPITALS NHS FOUNDATION TRUST,39941169,35382.44,S5 7AU
Department of Health,NHS Sheffield CCG,28/02/2022,Seconded-Basic Sal-Staff fm oth org,BEREAVEMENT SERVICE,NHS ENGLAND,39941172,64944,WF3 1WE
Department of Health,NHS Sheffield CCG,28/02/2022,Cont Care-Learning Disab(<65),CHC ADULT FULLY FUNDED,SEASHELL TRUST,39941185,74599.36,SK8 6RQ
Department of Health,NHS Sheffield CCG,28/02/2022,Clinical&Medical-Voluntary Sector,COMMUNITY SERVICES,SHIPSHAPE HEALTH & WELLBEING CENTRE,39941203,30000,S11 8AE
Department of Health,NHS Sheffield CCG,28/02/2022,Computer Hardware Purch,IM&T,DELL CORPORATION LTD,39999968,26370,RG12 1LF
Department of Health,NHS Sheffield CCG,28/02/2022,Computer Hardware Purch,IM&T,DELL CORPORATION LTD,39999968,5274,RG12 1LF
Department of Health,NHS Sheffield CCG,28/02/2022,C&M-GMS DES Learn Dsblty Hlth Chk,PRC DELEGATED CO-COMMISSIONING,WHITE HOUSE SURGERY SHEFFIELD,40006967,420,S2 1SL
Department of Health,NHS Sheffield CCG,28/02/2022,C&M-GMS DES Minor Surgery,PRC DELEGATED CO-COMMISSIONING,WHITE HOUSE SURGERY SHEFFIELD,40006967,120,S2 1SL
Department of Health,NHS Sheffield CCG,28/02/2022,C&M-GMS Global Sum,PRC DELEGATED CO-COMMISSIONING,WHITE HOUSE SURGERY SHEFFIELD,40006967,58875.09,S2 1SL
Department of Health,NHS Sheffield CCG,28/02/2022,C&M-GMS LONG COVID ES,PRC DELEGATED CO-COMMISSIONING,WHITE HOUSE SURGERY SHEFFIELD,40006967,283.44,S2 1SL
Department of Health,NHS Sheffield CCG,28/02/2022,C&M-GMS PCN DES Participation,PRC DELEGATED CO-COMMISSIONING,WHITE HOUSE SURGERY SHEFFIELD,40006967,1090.83,S2 1SL
Department of Health,NHS Sheffield CCG,28/02/2022,C&M-GMS Prem Notional Rent,PRC DELEGATED CO-COMMISSIONING,WHITE HOUSE SURGERY SHEFFIELD,40006967,9412.5,S2 1SL
Department of Health,NHS Sheffield CCG,28/02/2022,C&M-GMS Prem Rates,PRC DELEGATED CO-COMMISSIONING,WHITE HOUSE SURGERY SHEFFIELD,40006967,1632,S2 1SL
Department of Health,NHS Sheffield CCG,28/02/2022,C&M-GMS Prem Water Rates,PRC DELEGATED CO-COMMISSIONING,WHITE HOUSE SURGERY SHEFFIELD,40006967,370.07,S2 1SL
Department of Health,NHS Sheffield CCG,28/02/2022,C&M-GMS QOF Aspiration,PRC DELEGATED CO-COMMISSIONING,WHITE HOUSE SURGERY SHEFFIELD,40006967,6765.85,S2 1SL
Department of Health,NHS Sheffield CCG,28/02/2022,C&M-GMS WEIGHT MANAGEMENT SERVICE,PRC DELEGATED CO-COMMISSIONING,WHITE HOUSE SURGERY SHEFFIELD,40006967,11.5,S2 1SL
Department of Health,NHS Sheffield CCG,28/02/2022,C&M-GMS DES Learn Dsblty Hlth Chk,PRC DELEGATED CO-COMMISSIONING,HANDSWORTH MEDICAL PRACTICE SHEFFIELD,40006974,420,S13 9BZ
Department of Health,NHS Sheffield CCG,28/02/2022,C&M-GMS DES Minor Surgery,PRC DELEGATED CO-COMMISSIONING,HANDSWORTH MEDICAL PRACTICE SHEFFIELD,40006974,280,S13 9BZ
Department of Health,NHS Sheffield CCG,28/02/2022,C&M-GMS Global Sum,PRC DELEGATED CO-COMMISSIONING,HANDSWORTH MEDICAL PRACTICE SHEFFIELD,40006974,84894.95,S13 9BZ
Department of Health,NHS Sheffield CCG,28/02/2022,C&M-GMS LONG COVID ES,PRC DELEGATED CO-COMMISSIONING,HANDSWORTH MEDICAL PRACTICE SHEFFIELD,40006974,431.27,S13 9BZ
Department of Health,NHS Sheffield CCG,28/02/2022,C&M-GMS PCN DES Participation,PRC DELEGATED CO-COMMISSIONING,HANDSWORTH MEDICAL PRACTICE SHEFFIELD,40006974,1619.69,S13 9BZ
Department of Health,NHS Sheffield CCG,28/02/2022,C&M-GMS Prem Notional Rent,PRC DELEGATED CO-COMMISSIONING,HANDSWORTH MEDICAL PRACTICE SHEFFIELD,40006974,3321.66,S13 9BZ
Department of Health,NHS Sheffield CCG,28/02/2022,C&M-GMS QOF Aspiration,PRC DELEGATED CO-COMMISSIONING,HANDSWORTH MEDICAL PRACTICE SHEFFIELD,40006974,8749.2,S13 9BZ
Department of Health,NHS Sheffield CCG,28/02/2022,C&M-GMS WEIGHT MANAGEMENT SERVICE,PRC DELEGATED CO-COMMISSIONING,HANDSWORTH MEDICAL PRACTICE SHEFFIELD,40006974,23,S13 9BZ
Department of Health,NHS Sheffield CCG,28/02/2022,C&M-GMS DES Learn Dsblty Hlth Chk,PRC DELEGATED CO-COMMISSIONING,HOLLIES MEDICAL CENTRE,40006979,3640,S11 9AL
Department of Health,NHS Sheffield CCG,28/02/2022,C&M-GMS DES Minor Surgery,PRC DELEGATED CO-COMMISSIONING,HOLLIES MEDICAL CENTRE,40006979,160,S11 9AL
Department of Health,NHS Sheffield CCG,28/02/2022,C&M-GMS Global Sum,PRC DELEGATED CO-COMMISSIONING,HOLLIES MEDICAL CENTRE,40006979,69135.5,S11 9AL
Department of Health,NHS Sheffield CCG,28/02/2022,C&M-GMS LONG COVID ES,PRC DELEGATED CO-COMMISSIONING,HOLLIES MEDICAL CENTRE,40006979,410.66,S11 9AL
Department of Health,NHS Sheffield CCG,28/02/2022,C&M-GMS PCN DES Participation,PRC DELEGATED CO-COMMISSIONING,HOLLIES MEDICAL CENTRE,40006979,1270.72,S11 9AL
Department of Health,NHS Sheffield CCG,28/02/2022,C&M-GMS PCO Locum Sickness,PRC DELEGATED CO-COMMISSIONING,HOLLIES MEDICAL CENTRE,40006979,7920.79,S11 9AL
Department of Health,NHS Sheffield CCG,28/02/2022,C&M-GMS Prem Notional Rent,PRC DELEGATED CO-COMMISSIONING,HOLLIES MEDICAL CENTRE,40006979,3358.33,S11 9AL
Department of Health,NHS Sheffield CCG,28/02/2022,C&M-GMS QOF Aspiration,PRC DELEGATED CO-COMMISSIONING,HOLLIES MEDICAL CENTRE,40006979,8186.06,S11 9AL
Department of Health,NHS Sheffield CCG,28/02/2022,C&M-GMS WEIGHT MANAGEMENT SERVICE,PRC DELEGATED CO-COMMISSIONING,HOLLIES MEDICAL CENTRE,40006979,184,S11 9AL
Department of Health,NHS Sheffield CCG,28/02/2022,C&M-GMS DES Minor Surgery,PRC DELEGATED CO-COMMISSIONING,GRENOSIDE SURGERY,40006982,80,S35 8NX
Department of Health,NHS Sheffield CCG,28/02/2022,C&M-GMS Global Sum,PRC DELEGATED CO-COMMISSIONING,GRENOSIDE SURGERY,40006982,66353.06,S35 8NX
Department of Health,NHS Sheffield CCG,28/02/2022,C&M-GMS LONG COVID ES,PRC DELEGATED CO-COMMISSIONING,GRENOSIDE SURGERY,40006982,319.72,S35 8NX
Department of Health,NHS Sheffield CCG,28/02/2022,C&M-GMS PCN DES Participation,PRC DELEGATED CO-COMMISSIONING,GRENOSIDE SURGERY,40006982,1250.62,S35 8NX
Department of Health,NHS Sheffield CCG,28/02/2022,C&M-GMS Prem Notional Rent,PRC DELEGATED CO-COMMISSIONING,GRENOSIDE SURGERY,40006982,8375,S35 8NX
Department of Health,NHS Sheffield CCG,28/02/2022,C&M-GMS QOF Aspiration,PRC DELEGATED CO-COMMISSIONING,GRENOSIDE SURGERY,40006982,6590.45,S35 8NX
Department of Health,NHS Sheffield CCG,28/02/2022,C&M-GMS DES Learn Dsblty Hlth Chk,PRC DELEGATED CO-COMMISSIONING,GREYSTONES MEDICAL CENTRE,40006985,280,S11 7BJ
Department of Health,NHS Sheffield CCG,28/02/2022,C&M-GMS DES Minor Surgery,PRC DELEGATED CO-COMMISSIONING,GREYSTONES MEDICAL CENTRE,40006985,245,S11 7BJ
Department of Health,NHS Sheffield CCG,28/02/2022,C&M-GMS Global Sum,PRC DELEGATED CO-COMMISSIONING,GREYSTONES MEDICAL CENTRE,40006985,21394.57,S11 7BJ
Department of Health,NHS Sheffield CCG,28/02/2022,C&M-GMS LONG COVID ES,PRC DELEGATED CO-COMMISSIONING,GREYSTONES MEDICAL CENTRE,40006985,153.39,S11 7BJ
Department of Health,NHS Sheffield CCG,28/02/2022,C&M-GMS PCN DES Participation,PRC DELEGATED CO-COMMISSIONING,GREYSTONES MEDICAL CENTRE,40006985,403.29,S11 7BJ
Department of Health,NHS Sheffield CCG,28/02/2022,C&M-GMS Prem Notional Rent,PRC DELEGATED CO-COMMISSIONING,GREYSTONES MEDICAL CENTRE,40006985,2885.42,S11 7BJ
Department of Health,NHS Sheffield CCG,28/02/2022,C&M-GMS Prem Rates,PRC DELEGATED CO-COMMISSIONING,GREYSTONES MEDICAL CENTRE,40006985,426,S11 7BJ
Department of Health,NHS Sheffield CCG,28/02/2022,C&M-GMS Prem Water Rates,PRC DELEGATED CO-COMMISSIONING,GREYSTONES MEDICAL CENTRE,40006985,119.25,S11 7BJ
Department of Health,NHS Sheffield CCG,28/02/2022,C&M-GMS QOF Aspiration,PRC DELEGATED CO-COMMISSIONING,GREYSTONES MEDICAL CENTRE,40006985,2481.16,S11 7BJ
Department of Health,NHS Sheffield CCG,28/02/2022,C&M-GMS Global Sum,PRC DELEGATED CO-COMMISSIONING,HEELEY GREEN SURGERY,40006988,43704.19,S2 3AJ
Department of Health,NHS Sheffield CCG,28/02/2022,C&M-GMS LONG COVID ES,PRC DELEGATED CO-COMMISSIONING,HEELEY GREEN SURGERY,40006988,241.6,S2 3AJ
Department of Health,NHS Sheffield CCG,28/02/2022,C&M-GMS PCN DES Participation,PRC DELEGATED CO-COMMISSIONING,HEELEY GREEN SURGERY,40006988,848.8,S2 3AJ
Department of Health,NHS Sheffield CCG,28/02/2022,C&M-GMS Prem Notional Rent,PRC DELEGATED CO-COMMISSIONING,HEELEY GREEN SURGERY,40006988,3254.17,S2 3AJ
Department of Health,NHS Sheffield CCG,28/02/2022,C&M-GMS QOF Aspiration,PRC DELEGATED CO-COMMISSIONING,HEELEY GREEN SURGERY,40006988,4674.69,S2 3AJ
Department of Health,NHS Sheffield CCG,28/02/2022,C&M-GMS WEIGHT MANAGEMENT SERVICE,PRC DELEGATED CO-COMMISSIONING,HEELEY GREEN SURGERY,40006988,11.5,S2 3AJ
Department of Health,NHS Sheffield CCG,28/02/2022,C&M-GMS DES Minor Surgery,PRC DELEGATED CO-COMMISSIONING,MILL ROAD SURGERY SHEFFIELD,40006994,520,S35 9XQ
Department of Health,NHS Sheffield CCG,28/02/2022,C&M-GMS Global Sum,PRC DELEGATED CO-COMMISSIONING,MILL ROAD SURGERY SHEFFIELD,40006994,45455.54,S35 9XQ
Department of Health,NHS Sheffield CCG,28/02/2022,C&M-GMS LONG COVID ES,PRC DELEGATED CO-COMMISSIONING,MILL ROAD SURGERY SHEFFIELD,40006994,216.91,S35 9XQ
Department of Health,NHS Sheffield CCG,28/02/2022,C&M-GMS PCN DES Participation,PRC DELEGATED CO-COMMISSIONING,MILL ROAD SURGERY SHEFFIELD,40006994,838.81,S35 9XQ
Department of Health,NHS Sheffield CCG,28/02/2022,C&M-GMS Prem Notional Rent,PRC DELEGATED CO-COMMISSIONING,MILL ROAD SURGERY SHEFFIELD,40006994,4593.33,S35 9XQ
Department of Health,NHS Sheffield CCG,28/02/2022,C&M-GMS QOF Aspiration,PRC DELEGATED CO-COMMISSIONING,MILL ROAD SURGERY SHEFFIELD,40006994,5365.62,S35 9XQ
Department of Health,NHS Sheffield CCG,28/02/2022,C&M-GMS DES Learn Dsblty Hlth Chk,PRC DELEGATED CO-COMMISSIONING,NORFOLK PARK HEALTH CENTRE,40006997,420,S2 3TA
Department of Health,NHS Sheffield CCG,28/02/2022,C&M-GMS DES Minor Surgery,PRC DELEGATED CO-COMMISSIONING,NORFOLK PARK HEALTH CENTRE,40006997,1195,S2 3TA
Department of Health,NHS Sheffield CCG,28/02/2022,C&M-GMS Global Sum,PRC DELEGATED CO-COMMISSIONING,NORFOLK PARK HEALTH CENTRE,40006997,44428.13,S2 3TA
Department of Health,NHS Sheffield CCG,28/02/2022,C&M-GMS LONG COVID ES,PRC DELEGATED CO-COMMISSIONING,NORFOLK PARK HEALTH CENTRE,40006997,208.46,S2 3TA
Department of Health,NHS Sheffield CCG,28/02/2022,C&M-GMS PCN DES Participation,PRC DELEGATED CO-COMMISSIONING,NORFOLK PARK HEALTH CENTRE,40006997,820.08,S2 3TA
Department of Health,NHS Sheffield CCG,28/02/2022,C&M-GMS Prem Healthcentre Rent,PRC DELEGATED CO-COMMISSIONING,NORFOLK PARK HEALTH CENTRE,40006997,25961.04,S2 3TA
Department of Health,NHS Sheffield CCG,28/02/2022,C&M-GMS QOF Aspiration,PRC DELEGATED CO-COMMISSIONING,NORFOLK PARK HEALTH CENTRE,40006997,4434.09,S2 3TA
Department of Health,NHS Sheffield CCG,28/02/2022,C&M-GMS WEIGHT MANAGEMENT SERVICE,PRC DELEGATED CO-COMMISSIONING,NORFOLK PARK HEALTH CENTRE,40006997,57.5,S2 3TA
Department of Health,NHS Sheffield CCG,28/02/2022,C&M-GMS DES Minor Surgery,PRC DELEGATED CO-COMMISSIONING,NORWOOD MEDICAL CENTRE SHEFFIELD,40007001,1815,S5 7HD
Department of Health,NHS Sheffield CCG,28/02/2022,C&M-GMS Global Sum,PRC DELEGATED CO-COMMISSIONING,NORWOOD MEDICAL CENTRE SHEFFIELD,40007001,69971.73,S5 7HD
Department of Health,NHS Sheffield CCG,28/02/2022,C&M-GMS LONG COVID ES,PRC DELEGATED CO-COMMISSIONING,NORWOOD MEDICAL CENTRE SHEFFIELD,40007001,336.58,S5 7HD
Department of Health,NHS Sheffield CCG,28/02/2022,C&M-GMS PCN DES Participation,PRC DELEGATED CO-COMMISSIONING,NORWOOD MEDICAL CENTRE SHEFFIELD,40007001,1332.45,S5 7HD
Department of Health,NHS Sheffield CCG,28/02/2022,C&M-GMS Prem Notional Rent,PRC DELEGATED CO-COMMISSIONING,NORWOOD MEDICAL CENTRE SHEFFIELD,40007001,5187.5,S5 7HD
Department of Health,NHS Sheffield CCG,28/02/2022,C&M-GMS QOF Aspiration,PRC DELEGATED CO-COMMISSIONING,NORWOOD MEDICAL CENTRE SHEFFIELD,40007001,8469.31,S5 7HD
Department of Health,NHS Sheffield CCG,28/02/2022,C&M-GMS DES Learn Dsblty Hlth Chk,PRC DELEGATED CO-COMMISSIONING,BASLOW ROAD & SHOREHAM STREET SURGERIES,40007004,8260,S17 4DR
Department of Health,NHS Sheffield CCG,28/02/2022,C&M-GMS DES Minor Surgery,PRC DELEGATED CO-COMMISSIONING,BASLOW ROAD & SHOREHAM STREET SURGERIES,40007004,1875,S17 4DR
Department of Health,NHS Sheffield CCG,28/02/2022,C&M-GMS Global Sum,PRC DELEGATED CO-COMMISSIONING,BASLOW ROAD & SHOREHAM STREET SURGERIES,40007004,103886.98,S17 4DR
Department of Health,NHS Sheffield CCG,28/02/2022,C&M-GMS LONG COVID ES,PRC DELEGATED CO-COMMISSIONING,BASLOW ROAD & SHOREHAM STREET SURGERIES,40007004,509.14,S17 4DR
Department of Health,NHS Sheffield CCG,28/02/2022,C&M-GMS PCN DES Participation,PRC DELEGATED CO-COMMISSIONING,BASLOW ROAD & SHOREHAM STREET SURGERIES,40007004,1957.06,S17 4DR
Department of Health,NHS Sheffield CCG,28/02/2022,C&M-GMS Prem Healthcentre Rent,PRC DELEGATED CO-COMMISSIONING,BASLOW ROAD & SHOREHAM STREET SURGERIES,40007004,15641.73,S17 4DR
Department of Health,NHS Sheffield CCG,28/02/2022,C&M-GMS Prem Notional Rent,PRC DELEGATED CO-COMMISSIONING,BASLOW ROAD & SHOREHAM STREET SURGERIES,40007004,8222.71,S17 4DR
Department of Health,NHS Sheffield CCG,28/02/2022,C&M-GMS Prem Water Rates,PRC DELEGATED CO-COMMISSIONING,BASLOW ROAD & SHOREHAM STREET SURGERIES,40007004,179.5,S17 4DR
Department of Health,NHS Sheffield CCG,28/02/2022,C&M-GMS QOF Aspiration,PRC DELEGATED CO-COMMISSIONING,BASLOW ROAD & SHOREHAM STREET SURGERIES,40007004,10432.69,S17 4DR
Department of Health,NHS Sheffield CCG,28/02/2022,C&M-GMS WEIGHT MANAGEMENT SERVICE,PRC DELEGATED CO-COMMISSIONING,BASLOW ROAD & SHOREHAM STREET SURGERIES,40007004,299,S17 4DR
Department of Health,NHS Sheffield CCG,28/02/2022,C&M-GMS GP Statutory Levy,PRC DELEGATED CO-COMMISSIONING,BASLOW ROAD & SHOREHAM STREET SURGERIES,40007005,-441.95,S17 4DR
Department of Health,NHS Sheffield CCG,28/02/2022,C&M-GMS Prem Notional Rent,PRC DELEGATED CO-COMMISSIONING,BASLOW ROAD & SHOREHAM STREET SURGERIES,40007005,-2507.29,S17 4DR
Department of Health,NHS Sheffield CCG,28/02/2022,C&M-GMS DES Learn Dsblty Hlth Chk,PRC DELEGATED CO-COMMISSIONING,BEAUCHIEF MEDICAL PRACTICE,40007006,280,S8 0BJ
Department of Health,NHS Sheffield CCG,28/02/2022,C&M-GMS DES Minor Surgery,PRC DELEGATED CO-COMMISSIONING,BEAUCHIEF MEDICAL PRACTICE,40007006,240,S8 0BJ
Department of Health,NHS Sheffield CCG,28/02/2022,C&M-GMS Global Sum,PRC DELEGATED CO-COMMISSIONING,BEAUCHIEF MEDICAL PRACTICE,40007006,53667.73,S8 0BJ
Department of Health,NHS Sheffield CCG,28/02/2022,C&M-GMS LONG COVID ES,PRC DELEGATED CO-COMMISSIONING,BEAUCHIEF MEDICAL PRACTICE,40007006,294,S8 0BJ
Department of Health,NHS Sheffield CCG,28/02/2022,C&M-GMS PCN DES Participation,PRC DELEGATED CO-COMMISSIONING,BEAUCHIEF MEDICAL PRACTICE,40007006,450.19,S8 0BJ
Department of Health,NHS Sheffield CCG,28/02/2022,C&M-GMS PCO Locum Adop/Pat/Mat,PRC DELEGATED CO-COMMISSIONING,BEAUCHIEF MEDICAL PRACTICE,40007006,6952.34,S8 0BJ
Department of Health,NHS Sheffield CCG,28/02/2022,C&M-GMS Prem Notional Rent,PRC DELEGATED CO-COMMISSIONING,BEAUCHIEF MEDICAL PRACTICE,40007006,3770.84,S8 0BJ
Department of Health,NHS Sheffield CCG,28/02/2022,C&M-GMS Prem Water Rates,PRC DELEGATED CO-COMMISSIONING,BEAUCHIEF MEDICAL PRACTICE,40007006,103.81,S8 0BJ
Department of Health,NHS Sheffield CCG,28/02/2022,C&M-GMS QOF Aspiration,PRC DELEGATED CO-COMMISSIONING,BEAUCHIEF MEDICAL PRACTICE,40007006,5567.74,S8 0BJ
Department of Health,NHS Sheffield CCG,28/02/2022,C&M-GMS WEIGHT MANAGEMENT SERVICE,PRC DELEGATED CO-COMMISSIONING,BEAUCHIEF MEDICAL PRACTICE,40007006,103.5,S8 0BJ
Department of Health,NHS Sheffield CCG,28/02/2022,C&M-GMS DES Minor Surgery,PRC DELEGATED CO-COMMISSIONING,OUGHTIBRIDGE SURGERY,40007011,560,S35 0FW
Department of Health,NHS Sheffield CCG,28/02/2022,C&M-GMS Global Sum,PRC DELEGATED CO-COMMISSIONING,OUGHTIBRIDGE SURGERY,40007011,47539.39,S35 0FW
Department of Health,NHS Sheffield CCG,28/02/2022,C&M-GMS LONG COVID ES,PRC DELEGATED CO-COMMISSIONING,OUGHTIBRIDGE SURGERY,40007011,236.57,S35 0FW
Department of Health,NHS Sheffield CCG,28/02/2022,C&M-GMS PCN DES Participation,PRC DELEGATED CO-COMMISSIONING,OUGHTIBRIDGE SURGERY,40007011,886,S35 0FW
Department of Health,NHS Sheffield CCG,28/02/2022,C&M-GMS Prem Notional Rent,PRC DELEGATED CO-COMMISSIONING,OUGHTIBRIDGE SURGERY,40007011,4064.58,S35 0FW
Department of Health,NHS Sheffield CCG,28/02/2022,C&M-GMS Prem Water Rates,PRC DELEGATED CO-COMMISSIONING,OUGHTIBRIDGE SURGERY,40007011,180.97,S35 0FW
Department of Health,NHS Sheffield CCG,28/02/2022,C&M-GMS QOF Aspiration,PRC DELEGATED CO-COMMISSIONING,OUGHTIBRIDGE SURGERY,40007011,4819.4,S35 0FW
Department of Health,NHS Sheffield CCG,28/02/2022,C&M-GMS DES Minor Surgery,PRC DELEGATED CO-COMMISSIONING,BROOMHILL SURGERY,40007022,330,S10 5BU
Department of Health,NHS Sheffield CCG,28/02/2022,C&M-GMS Global Sum,PRC DELEGATED CO-COMMISSIONING,BROOMHILL SURGERY,40007022,68680.81,S10 5BU
Department of Health,NHS Sheffield CCG,28/02/2022,C&M-GMS LONG COVID ES,PRC DELEGATED CO-COMMISSIONING,BROOMHILL SURGERY,40007022,402.82,S10 5BU
Department of Health,NHS Sheffield CCG,28/02/2022,C&M-GMS PCN DES Participation,PRC DELEGATED CO-COMMISSIONING,BROOMHILL SURGERY,40007022,1322.15,S10 5BU
Department of Health,NHS Sheffield CCG,28/02/2022,C&M-GMS Prem Cost Rent,PRC DELEGATED CO-COMMISSIONING,BROOMHILL SURGERY,40007022,3309.67,S10 5BU
Department of Health,NHS Sheffield CCG,28/02/2022,C&M-GMS Prem Notional Rent,PRC DELEGATED CO-COMMISSIONING,BROOMHILL SURGERY,40007022,2612.5,S10 5BU
Department of Health,NHS Sheffield CCG,28/02/2022,C&M-GMS QOF Aspiration,PRC DELEGATED CO-COMMISSIONING,BROOMHILL SURGERY,40007022,7198.65,S10 5BU
Department of Health,NHS Sheffield CCG,28/02/2022,C&M-GMS DES Learn Dsblty Hlth Chk,PRC DELEGATED CO-COMMISSIONING,BUCHANAN ROAD SURGERY,40007025,140,S5 8AL
Department of Health,NHS Sheffield CCG,28/02/2022,C&M-GMS DES Minor Surgery,PRC DELEGATED CO-COMMISSIONING,BUCHANAN ROAD SURGERY,40007025,240,S5 8AL
Department of Health,NHS Sheffield CCG,28/02/2022,C&M-GMS Global Sum,PRC DELEGATED CO-COMMISSIONING,BUCHANAN ROAD SURGERY,40007025,37523.3,S5 8AL
Department of Health,NHS Sheffield CCG,28/02/2022,C&M-GMS LONG COVID ES,PRC DELEGATED CO-COMMISSIONING,BUCHANAN ROAD SURGERY,40007025,192.26,S5 8AL
Department of Health,NHS Sheffield CCG,28/02/2022,C&M-GMS PCN DES Participation,PRC DELEGATED CO-COMMISSIONING,BUCHANAN ROAD SURGERY,40007025,727.12,S5 8AL
Department of Health,NHS Sheffield CCG,28/02/2022,C&M-GMS Prem Notional Rent,PRC DELEGATED CO-COMMISSIONING,BUCHANAN ROAD SURGERY,40007025,2595.83,S5 8AL
Department of Health,NHS Sheffield CCG,28/02/2022,C&M-GMS QOF Aspiration,PRC DELEGATED CO-COMMISSIONING,BUCHANAN ROAD SURGERY,40007025,4716.42,S5 8AL
Department of Health,NHS Sheffield CCG,28/02/2022,C&M-GMS WEIGHT MANAGEMENT SERVICE,PRC DELEGATED CO-COMMISSIONING,BUCHANAN ROAD SURGERY,40007025,103.5,S5 8AL
Department of Health,NHS Sheffield CCG,28/02/2022,C&M-GMS DES Minor Surgery,PRC DELEGATED CO-COMMISSIONING,CHARNOCK HEALTH PRIMARY CARE CENTRE,40007030,1340,S12 3GH
Department of Health,NHS Sheffield CCG,28/02/2022,C&M-GMS Global Sum,PRC DELEGATED CO-COMMISSIONING,CHARNOCK HEALTH PRIMARY CARE CENTRE,40007030,46980.86,S12 3GH
Department of Health,NHS Sheffield CCG,28/02/2022,C&M-GMS LONG COVID ES,PRC DELEGATED CO-COMMISSIONING,CHARNOCK HEALTH PRIMARY CARE CENTRE,40007030,230.23,S12 3GH
Department of Health,NHS Sheffield CCG,28/02/2022,C&M-GMS PCN DES Participation,PRC DELEGATED CO-COMMISSIONING,CHARNOCK HEALTH PRIMARY CARE CENTRE,40007030,884.41,S12 3GH
Department of Health,NHS Sheffield CCG,28/02/2022,C&M-GMS Prem Notional Rent,PRC DELEGATED CO-COMMISSIONING,CHARNOCK HEALTH PRIMARY CARE CENTRE,40007030,340,S12 3GH
Department of Health,NHS Sheffield CCG,28/02/2022,C&M-GMS Prem Water Rates,PRC DELEGATED CO-COMMISSIONING,CHARNOCK HEALTH PRIMARY CARE CENTRE,40007030,235.35,S12 3GH
Department of Health,NHS Sheffield CCG,28/02/2022,C&M-GMS QOF Aspiration,PRC DELEGATED CO-COMMISSIONING,CHARNOCK HEALTH PRIMARY CARE CENTRE,40007030,5385.73,S12 3GH
Department of Health,NHS Sheffield CCG,28/02/2022,C&M-GMS WEIGHT MANAGEMENT SERVICE,PRC DELEGATED CO-COMMISSIONING,CHARNOCK HEALTH PRIMARY CARE CENTRE,40007030,69,S12 3GH
Department of Health,NHS Sheffield CCG,28/02/2022,C&M-GMS DES Learn Dsblty Hlth Chk,PRC DELEGATED CO-COMMISSIONING,CARTERKNOWLE & DORE MEDICAL PRACTICE,40007038,1540,S7 2DW
Department of Health,NHS Sheffield CCG,28/02/2022,C&M-GMS DES Minor Surgery,PRC DELEGATED CO-COMMISSIONING,CARTERKNOWLE & DORE MEDICAL PRACTICE,40007038,1325,S7 2DW
Department of Health,NHS Sheffield CCG,28/02/2022,C&M-GMS Global Sum,PRC DELEGATED CO-COMMISSIONING,CARTERKNOWLE & DORE MEDICAL PRACTICE,40007038,95066.77,S7 2DW
Department of Health,NHS Sheffield CCG,28/02/2022,C&M-GMS LONG COVID ES,PRC DELEGATED CO-COMMISSIONING,CARTERKNOWLE & DORE MEDICAL PRACTICE,40007038,522.49,S7 2DW
Department of Health,NHS Sheffield CCG,28/02/2022,C&M-GMS PCN DES Participation,PRC DELEGATED CO-COMMISSIONING,CARTERKNOWLE & DORE MEDICAL PRACTICE,40007038,1765.5,S7 2DW
Department of Health,NHS Sheffield CCG,28/02/2022,C&M-GMS Prem Notional Rent,PRC DELEGATED CO-COMMISSIONING,CARTERKNOWLE & DORE MEDICAL PRACTICE,40007038,7855,S7 2DW
Department of Health,NHS Sheffield CCG,28/02/2022,C&M-GMS Prem Rates,PRC DELEGATED CO-COMMISSIONING,CARTERKNOWLE & DORE MEDICAL PRACTICE,40007038,18712.5,S7 2DW
Department of Health,NHS Sheffield CCG,28/02/2022,C&M-GMS QOF Aspiration,PRC DELEGATED CO-COMMISSIONING,CARTERKNOWLE & DORE MEDICAL PRACTICE,40007038,11516.91,S7 2DW
Department of Health,NHS Sheffield CCG,28/02/2022,C&M-GMS WEIGHT MANAGEMENT SERVICE,PRC DELEGATED CO-COMMISSIONING,CARTERKNOWLE & DORE MEDICAL PRACTICE,40007038,1771,S7 2DW
Department of Health,NHS Sheffield CCG,28/02/2022,C&M-GMS DES Minor Surgery,PRC DELEGATED CO-COMMISSIONING,SHIREGREEN MEDICAL CENTRE,40007043,80,S5 0RG
Department of Health,NHS Sheffield CCG,28/02/2022,C&M-GMS Global Sum,PRC DELEGATED CO-COMMISSIONING,SHIREGREEN MEDICAL CENTRE,40007043,60132,S5 0RG
Department of Health,NHS Sheffield CCG,28/02/2022,C&M-GMS LONG COVID ES,PRC DELEGATED CO-COMMISSIONING,SHIREGREEN MEDICAL CENTRE,40007043,317.7,S5 0RG
Department of Health,NHS Sheffield CCG,28/02/2022,C&M-GMS PCN DES Participation,PRC DELEGATED CO-COMMISSIONING,SHIREGREEN MEDICAL CENTRE,40007043,1161.13,S5 0RG
Department of Health,NHS Sheffield CCG,28/02/2022,C&M-GMS Prem Cost Rent,PRC DELEGATED CO-COMMISSIONING,SHIREGREEN MEDICAL CENTRE,40007043,1792.33,S5 0RG
Department of Health,NHS Sheffield CCG,28/02/2022,C&M-GMS Prem Notional Rent,PRC DELEGATED CO-COMMISSIONING,SHIREGREEN MEDICAL CENTRE,40007043,5375,S5 0RG
Department of Health,NHS Sheffield CCG,28/02/2022,C&M-GMS Prem Rates,PRC DELEGATED CO-COMMISSIONING,SHIREGREEN MEDICAL CENTRE,40007043,15593.75,S5 0RG
Department of Health,NHS Sheffield CCG,28/02/2022,C&M-GMS QOF Aspiration,PRC DELEGATED CO-COMMISSIONING,SHIREGREEN MEDICAL CENTRE,40007043,7267.46,S5 0RG
Department of Health,NHS Sheffield CCG,28/02/2022,C&M-GMS WEIGHT MANAGEMENT SERVICE,PRC DELEGATED CO-COMMISSIONING,SHIREGREEN MEDICAL CENTRE,40007043,34.5,S5 0RG
Department of Health,NHS Sheffield CCG,28/02/2022,C&M-GMS GP Statutory Levy,PRC DELEGATED CO-COMMISSIONING,SHIREGREEN MEDICAL CENTRE,40007044,-266.77,S5 0RG
Department of Health,NHS Sheffield CCG,28/02/2022,C&M-GMS DES Minor Surgery,PRC DELEGATED CO-COMMISSIONING,STANNINGTON MEDICAL CENTRE,40007050,80,S6 6BX
Department of Health,NHS Sheffield CCG,28/02/2022,C&M-GMS Global Sum,PRC DELEGATED CO-COMMISSIONING,STANNINGTON MEDICAL CENTRE,40007050,27050.11,S6 6BX
Department of Health,NHS Sheffield CCG,28/02/2022,C&M-GMS Prem Notional Rent,PRC DELEGATED CO-COMMISSIONING,STANNINGTON MEDICAL CENTRE,40007050,2625,S6 6BX
Department of Health,NHS Sheffield CCG,28/02/2022,C&M-GMS QOF Aspiration,PRC DELEGATED CO-COMMISSIONING,STANNINGTON MEDICAL CENTRE,40007050,3194.14,S6 6BX
Department of Health,NHS Sheffield CCG,28/02/2022,C&M-GMS DES Minor Surgery,PRC DELEGATED CO-COMMISSIONING,DUKE MEDICAL CENTRE,40007053,600,S2 2TD
Department of Health,NHS Sheffield CCG,28/02/2022,C&M-GMS Global Sum,PRC DELEGATED CO-COMMISSIONING,DUKE MEDICAL CENTRE,40007053,67465.33,S2 2TD
Department of Health,NHS Sheffield CCG,28/02/2022,C&M-GMS LONG COVID ES,PRC DELEGATED CO-COMMISSIONING,DUKE MEDICAL CENTRE,40007053,308.63,S2 2TD
Department of Health,NHS Sheffield CCG,28/02/2022,C&M-GMS PCN DES Participation,PRC DELEGATED CO-COMMISSIONING,DUKE MEDICAL CENTRE,40007053,1180.97,S2 2TD
Department of Health,NHS Sheffield CCG,28/02/2022,C&M-GMS Prem Notional Rent,PRC DELEGATED CO-COMMISSIONING,DUKE MEDICAL CENTRE,40007053,5721.67,S2 2TD
Department of Health,NHS Sheffield CCG,28/02/2022,C&M-GMS QOF Aspiration,PRC DELEGATED CO-COMMISSIONING,DUKE MEDICAL CENTRE,40007053,6200.05,S2 2TD
Department of Health,NHS Sheffield CCG,28/02/2022,C&M-GMS DES Extended Hours Access,PRC DELEGATED CO-COMMISSIONING,ECCLESFIELD GROUP PRACTICE,40007058,5114.88,S35 9XQ
Department of Health,NHS Sheffield CCG,28/02/2022,C&M-GMS DES Learn Dsblty Hlth Chk,PRC DELEGATED CO-COMMISSIONING,ECCLESFIELD GROUP PRACTICE,40007058,140,S35 9XQ
Department of Health,NHS Sheffield CCG,28/02/2022,C&M-GMS DES Minor Surgery,PRC DELEGATED CO-COMMISSIONING,ECCLESFIELD GROUP PRACTICE,40007058,600,S35 9XQ
Department of Health,NHS Sheffield CCG,28/02/2022,C&M-GMS Global Sum,PRC DELEGATED CO-COMMISSIONING,ECCLESFIELD GROUP PRACTICE,40007058,74415.1,S35 9XQ
Department of Health,NHS Sheffield CCG,28/02/2022,C&M-GMS LONG COVID ES,PRC DELEGATED CO-COMMISSIONING,ECCLESFIELD GROUP PRACTICE,40007058,355.01,S35 9XQ
Department of Health,NHS Sheffield CCG,28/02/2022,C&M-GMS PCN DES Clin Pharmacist,PRC DELEGATED CO-COMMISSIONING,ECCLESFIELD GROUP PRACTICE,40007058,16244.71,S35 9XQ
Department of Health,NHS Sheffield CCG,28/02/2022,C&M-GMS PCN DES Clinical Director,PRC DELEGATED CO-COMMISSIONING,ECCLESFIELD GROUP PRACTICE,40007058,2614.27,S35 9XQ
Department of Health,NHS Sheffield CCG,28/02/2022,C&M-GMS PCN DES PCN support,LOCAL ENHANCED SERVICES,ECCLESFIELD GROUP PRACTICE,40007058,5328,S35 9XQ
Department of Health,NHS Sheffield CCG,28/02/2022,C&M-GMS PCN DES Participation,PRC DELEGATED CO-COMMISSIONING,ECCLESFIELD GROUP PRACTICE,40007058,1441.13,S35 9XQ
Department of Health,NHS Sheffield CCG,28/02/2022,C&M-GMS PCN DES Physiotherapist,PRC DELEGATED CO-COMMISSIONING,ECCLESFIELD GROUP PRACTICE,40007058,4716.25,S35 9XQ
Department of Health,NHS Sheffield CCG,28/02/2022,C&M-GMS PCN DES Soc Prescribing,PRC DELEGATED CO-COMMISSIONING,ECCLESFIELD GROUP PRACTICE,40007058,10733.75,S35 9XQ
Department of Health,NHS Sheffield CCG,28/02/2022,C&M-GMS Prem Notional Rent,PRC DELEGATED CO-COMMISSIONING,ECCLESFIELD GROUP PRACTICE,40007058,7041.67,S35 9XQ
Department of Health,NHS Sheffield CCG,28/02/2022,C&M-GMS Prem Water Rates,PRC DELEGATED CO-COMMISSIONING,ECCLESFIELD GROUP PRACTICE,40007058,328.93,S35 9XQ
Department of Health,NHS Sheffield CCG,28/02/2022,C&M-GMS QOF Aspiration,PRC DELEGATED CO-COMMISSIONING,ECCLESFIELD GROUP PRACTICE,40007058,9899.3,S35 9XQ
Department of Health,NHS Sheffield CCG,28/02/2022,C&M-GMS WEIGHT MANAGEMENT SERVICE,PRC DELEGATED CO-COMMISSIONING,ECCLESFIELD GROUP PRACTICE,40007058,126.5,S35 9XQ
Department of Health,NHS Sheffield CCG,28/02/2022,C&M-PCN-GMS DES Leadership Payment,PRC DELEGATED CO-COMMISSIONING,ECCLESFIELD GROUP PRACTICE,40007058,5182.33,S35 9XQ
Department of Health,NHS Sheffield CCG,28/02/2022,C&M-GMS DES Learn Dsblty Hlth Chk,PRC DELEGATED CO-COMMISSIONING,CROOKES PRACTICE,40007061,420,S10 1GN
Department of Health,NHS Sheffield CCG,28/02/2022,C&M-GMS Global Sum,PRC DELEGATED CO-COMMISSIONING,CROOKES PRACTICE,40007061,56958.51,S10 1GN
Department of Health,NHS Sheffield CCG,28/02/2022,C&M-GMS LONG COVID ES,PRC DELEGATED CO-COMMISSIONING,CROOKES PRACTICE,40007061,348.04,S10 1GN
Department of Health,NHS Sheffield CCG,28/02/2022,C&M-GMS PCN DES Participation,PRC DELEGATED CO-COMMISSIONING,CROOKES PRACTICE,40007061,1077.54,S10 1GN
Department of Health,NHS Sheffield CCG,28/02/2022,C&M-GMS PCO Locum Adop/Pat/Mat,PRC DELEGATED CO-COMMISSIONING,CROOKES PRACTICE,40007061,16088.53,S10 1GN
Department of Health,NHS Sheffield CCG,28/02/2022,C&M-GMS Prem Notional Rent,PRC DELEGATED CO-COMMISSIONING,CROOKES PRACTICE,40007061,4006.59,S10 1GN
Department of Health,NHS Sheffield CCG,28/02/2022,C&M-GMS Prem Water Rates,PRC DELEGATED CO-COMMISSIONING,CROOKES PRACTICE,40007061,154.78,S10 1GN
Department of Health,NHS Sheffield CCG,28/02/2022,C&M-GMS QOF Aspiration,PRC DELEGATED CO-COMMISSIONING,CROOKES PRACTICE,40007061,5404.47,S10 1GN
Department of Health,NHS Sheffield CCG,28/02/2022,C&M-GMS DES Learn Dsblty Hlth Chk,PRC DELEGATED CO-COMMISSIONING,ELM LANE SURGERY,40007063,560,S5 7TW
Department of Health,NHS Sheffield CCG,28/02/2022,C&M-GMS Global Sum,PRC DELEGATED CO-COMMISSIONING,ELM LANE SURGERY,40007063,46577.97,S5 7TW
Department of Health,NHS Sheffield CCG,28/02/2022,C&M-GMS LONG COVID ES,PRC DELEGATED CO-COMMISSIONING,ELM LANE SURGERY,40007063,222.68,S5 7TW
Department of Health,NHS Sheffield CCG,28/02/2022,C&M-GMS PCN DES Participation,PRC DELEGATED CO-COMMISSIONING,ELM LANE SURGERY,40007063,865.86,S5 7TW
Department of Health,NHS Sheffield CCG,28/02/2022,C&M-GMS PCO Other,PRC DELEGATED CO-COMMISSIONING,ELM LANE SURGERY,40007063,3550,S5 7TW
Department of Health,NHS Sheffield CCG,28/02/2022,C&M-GMS Prem Notional Rent,PRC DELEGATED CO-COMMISSIONING,ELM LANE SURGERY,40007063,5343,S5 7TW
Department of Health,NHS Sheffield CCG,28/02/2022,C&M-GMS Prem Rates,PRC DELEGATED CO-COMMISSIONING,ELM LANE SURGERY,40007063,959,S5 7TW
Department of Health,NHS Sheffield CCG,28/02/2022,C&M-GMS QOF Aspiration,PRC DELEGATED CO-COMMISSIONING,ELM LANE SURGERY,40007063,5528.96,S5 7TW
Department of Health,NHS Sheffield CCG,28/02/2022,C&M-GMS WEIGHT MANAGEMENT SERVICE,PRC DELEGATED CO-COMMISSIONING,ELM LANE SURGERY,40007063,23,S5 7TW
Department of Health,NHS Sheffield CCG,28/02/2022,C&M-GMS DES Learn Dsblty Hlth Chk,PRC DELEGATED CO-COMMISSIONING,MEDICAL CENTRE CRYSTAL PEAKS,40007066,3920,S20 7HZ
Department of Health,NHS Sheffield CCG,28/02/2022,C&M-GMS DES Minor Surgery,PRC DELEGATED CO-COMMISSIONING,MEDICAL CENTRE CRYSTAL PEAKS,40007066,3810,S20 7HZ
Department of Health,NHS Sheffield CCG,28/02/2022,C&M-GMS Global Sum,PRC DELEGATED CO-COMMISSIONING,MEDICAL CENTRE CRYSTAL PEAKS,40007066,51650.97,S20 7HZ
Department of Health,NHS Sheffield CCG,28/02/2022,C&M-GMS LONG COVID ES,PRC DELEGATED CO-COMMISSIONING,MEDICAL CENTRE CRYSTAL PEAKS,40007066,274.79,S20 7HZ
Department of Health,NHS Sheffield CCG,28/02/2022,C&M-GMS PCN DES Participation,PRC DELEGATED CO-COMMISSIONING,MEDICAL CENTRE CRYSTAL PEAKS,40007066,978.29,S20 7HZ
Department of Health,NHS Sheffield CCG,28/02/2022,C&M-GMS PCO Locum Adop/Pat/Mat,PRC DELEGATED CO-COMMISSIONING,MEDICAL CENTRE CRYSTAL PEAKS,40007066,1618.77,S20 7HZ
Department of Health,NHS Sheffield CCG,28/02/2022,C&M-GMS Prem Notional Rent,PRC DELEGATED CO-COMMISSIONING,MEDICAL CENTRE CRYSTAL PEAKS,40007066,270,S20 7HZ
Department of Health,NHS Sheffield CCG,28/02/2022,C&M-GMS Prem Water Rates,PRC DELEGATED CO-COMMISSIONING,MEDICAL CENTRE CRYSTAL PEAKS,40007066,992.53,S20 7HZ
Department of Health,NHS Sheffield CCG,28/02/2022,C&M-GMS QOF Aspiration,PRC DELEGATED CO-COMMISSIONING,MEDICAL CENTRE CRYSTAL PEAKS,40007066,7126.23,S20 7HZ
Department of Health,NHS Sheffield CCG,28/02/2022,C&M-GMS DES Learn Dsblty Hlth Chk,PRC DELEGATED CO-COMMISSIONING,FAR LANE MEDICAL CENTRE,40007073,140,S6 4FA
Department of Health,NHS Sheffield CCG,28/02/2022,C&M-GMS DES Minor Surgery,PRC DELEGATED CO-COMMISSIONING,FAR LANE MEDICAL CENTRE,40007073,1585,S6 4FA
Department of Health,NHS Sheffield CCG,28/02/2022,C&M-GMS Global Sum,PRC DELEGATED CO-COMMISSIONING,FAR LANE MEDICAL CENTRE,40007073,59887.87,S6 4FA
Department of Health,NHS Sheffield CCG,28/02/2022,C&M-GMS LONG COVID ES,PRC DELEGATED CO-COMMISSIONING,FAR LANE MEDICAL CENTRE,40007073,294.7,S6 4FA
Department of Health,NHS Sheffield CCG,28/02/2022,C&M-GMS PCN DES Participation,PRC DELEGATED CO-COMMISSIONING,FAR LANE MEDICAL CENTRE,40007073,1139.22,S6 4FA
Department of Health,NHS Sheffield CCG,28/02/2022,C&M-GMS Prem Notional Rent,PRC DELEGATED CO-COMMISSIONING,FAR LANE MEDICAL CENTRE,40007073,3504.17,S6 4FA
Department of Health,NHS Sheffield CCG,28/02/2022,C&M-GMS QOF Aspiration,PRC DELEGATED CO-COMMISSIONING,FAR LANE MEDICAL CENTRE,40007073,6827.86,S6 4FA
Department of Health,NHS Sheffield CCG,28/02/2022,C&M-GMS WEIGHT MANAGEMENT SERVICE,PRC DELEGATED CO-COMMISSIONING,FAR LANE MEDICAL CENTRE,40007073,46,S6 4FA
Department of Health,NHS Sheffield CCG,28/02/2022,C&M-GMS DES Learn Dsblty Hlth Chk,PRC DELEGATED CO-COMMISSIONING,DEVONSHIRE GREEN MEDICAL CENTRE,40007076,1960,S3 7SF
Department of Health,NHS Sheffield CCG,28/02/2022,C&M-GMS DES Minor Surgery,PRC DELEGATED CO-COMMISSIONING,DEVONSHIRE GREEN MEDICAL CENTRE,40007076,165,S3 7SF
Department of Health,NHS Sheffield CCG,28/02/2022,C&M-GMS Global Sum,PRC DELEGATED CO-COMMISSIONING,DEVONSHIRE GREEN MEDICAL CENTRE,40007076,53474.78,S3 7SF
Department of Health,NHS Sheffield CCG,28/02/2022,C&M-GMS LONG COVID ES,PRC DELEGATED CO-COMMISSIONING,DEVONSHIRE GREEN MEDICAL CENTRE,40007076,295.19,S3 7SF
Department of Health,NHS Sheffield CCG,28/02/2022,C&M-GMS PCN DES Participation,PRC DELEGATED CO-COMMISSIONING,DEVONSHIRE GREEN MEDICAL CENTRE,40007076,936.47,S3 7SF
Department of Health,NHS Sheffield CCG,28/02/2022,C&M-GMS Prem Notional Rent,PRC DELEGATED CO-COMMISSIONING,DEVONSHIRE GREEN MEDICAL CENTRE,40007076,5987.5,S3 7SF
Department of Health,NHS Sheffield CCG,28/02/2022,C&M-GMS QOF Aspiration,PRC DELEGATED CO-COMMISSIONING,DEVONSHIRE GREEN MEDICAL CENTRE,40007076,5473.95,S3 7SF
Department of Health,NHS Sheffield CCG,28/02/2022,C&M-GMS DES Learn Dsblty Hlth Chk,PRC DELEGATED CO-COMMISSIONING,TRAMWAYS MEDICAL CENTRE,40007080,5320,S6 4JQ
Department of Health,NHS Sheffield CCG,28/02/2022,C&M-GMS DES Minor Surgery,PRC DELEGATED CO-COMMISSIONING,TRAMWAYS MEDICAL CENTRE,40007080,6745,S6 4JQ
Department of Health,NHS Sheffield CCG,28/02/2022,C&M-GMS Global Sum,PRC DELEGATED CO-COMMISSIONING,TRAMWAYS MEDICAL CENTRE,40007080,66845.15,S6 4JQ
Department of Health,NHS Sheffield CCG,28/02/2022,C&M-GMS LONG COVID ES,PRC DELEGATED CO-COMMISSIONING,TRAMWAYS MEDICAL CENTRE,40007080,344.49,S6 4JQ
Department of Health,NHS Sheffield CCG,28/02/2022,C&M-GMS PCN DES Participation,PRC DELEGATED CO-COMMISSIONING,TRAMWAYS MEDICAL CENTRE,40007080,1255.37,S6 4JQ
Department of Health,NHS Sheffield CCG,28/02/2022,C&M-GMS Prem Cost Rent,PRC DELEGATED CO-COMMISSIONING,TRAMWAYS MEDICAL CENTRE,40007080,4012.75,S6 4JQ
Department of Health,NHS Sheffield CCG,28/02/2022,C&M-GMS QOF Aspiration,PRC DELEGATED CO-COMMISSIONING,TRAMWAYS MEDICAL CENTRE,40007080,6868.53,S6 4JQ
Department of Health,NHS Sheffield CCG,28/02/2022,C&M-GMS DES Minor Surgery,PRC DELEGATED CO-COMMISSIONING,MATHEWS PRACTICE,40007085,1245,S2 4UJ
Department of Health,NHS Sheffield CCG,28/02/2022,C&M-GMS Global Sum,PRC DELEGATED CO-COMMISSIONING,MATHEWS PRACTICE,40007085,57312.43,S2 4UJ
Department of Health,NHS Sheffield CCG,28/02/2022,C&M-GMS LONG COVID ES,PRC DELEGATED CO-COMMISSIONING,MATHEWS PRACTICE,40007085,308.59,S2 4UJ
Department of Health,NHS Sheffield CCG,28/02/2022,C&M-GMS PCN DES Participation,PRC DELEGATED CO-COMMISSIONING,MATHEWS PRACTICE,40007085,1147.05,S2 4UJ
Department of Health,NHS Sheffield CCG,28/02/2022,C&M-GMS Prem Rates,PRC DELEGATED CO-COMMISSIONING,MATHEWS PRACTICE,40007085,1466,S2 4UJ
Department of Health,NHS Sheffield CCG,28/02/2022,C&M-GMS QOF Aspiration,PRC DELEGATED CO-COMMISSIONING,MATHEWS PRACTICE,40007085,6845.8,S2 4UJ
Department of Health,NHS Sheffield CCG,28/02/2022,C&M-GMS DES Learn Dsblty Hlth Chk,PRC DELEGATED CO-COMMISSIONING,UPPERTHORPE MEDICAL CENTRE,40007088,280,S6 3FT
Department of Health,NHS Sheffield CCG,28/02/2022,C&M-GMS DES Minor Surgery,PRC DELEGATED CO-COMMISSIONING,UPPERTHORPE MEDICAL CENTRE,40007088,1070,S6 3FT
Department of Health,NHS Sheffield CCG,28/02/2022,C&M-GMS Global Sum,PRC DELEGATED CO-COMMISSIONING,UPPERTHORPE MEDICAL CENTRE,40007088,94863.54,S6 3FT
Department of Health,NHS Sheffield CCG,28/02/2022,C&M-GMS LONG COVID ES,PRC DELEGATED CO-COMMISSIONING,UPPERTHORPE MEDICAL CENTRE,40007088,508.93,S6 3FT
Department of Health,NHS Sheffield CCG,28/02/2022,C&M-GMS PCN DES Participation,PRC DELEGATED CO-COMMISSIONING,UPPERTHORPE MEDICAL CENTRE,40007088,1770.85,S6 3FT
Department of Health,NHS Sheffield CCG,28/02/2022,C&M-GMS Prem Actual Rent,PRC DELEGATED CO-COMMISSIONING,UPPERTHORPE MEDICAL CENTRE,40007088,419.5,S6 3FT
Department of Health,NHS Sheffield CCG,28/02/2022,C&M-GMS Prem Notional Rent,PRC DELEGATED CO-COMMISSIONING,UPPERTHORPE MEDICAL CENTRE,40007088,2128.33,S6 3FT
Department of Health,NHS Sheffield CCG,28/02/2022,C&M-GMS QOF Aspiration,PRC DELEGATED CO-COMMISSIONING,UPPERTHORPE MEDICAL CENTRE,40007088,10749.32,S6 3FT
Department of Health,NHS Sheffield CCG,28/02/2022,C&M-GMS WEIGHT MANAGEMENT SERVICE,PRC DELEGATED CO-COMMISSIONING,UPPERTHORPE MEDICAL CENTRE,40007088,11.5,S6 3FT
Department of Health,NHS Sheffield CCG,28/02/2022,C&M-GMS GP Statutory Levy,PRC DELEGATED CO-COMMISSIONING,UPPERTHORPE MEDICAL CENTRE,40007089,-444.15,S6 3FT
Department of Health,NHS Sheffield CCG,28/02/2022,C&M-GMS DES Learn Dsblty Hlth Chk,PRC DELEGATED CO-COMMISSIONING,WALKLEY HOUSE MEDICAL CENTRE,40007097,4620,S6 3TN
Department of Health,NHS Sheffield CCG,28/02/2022,C&M-GMS DES Minor Surgery,PRC DELEGATED CO-COMMISSIONING,WALKLEY HOUSE MEDICAL CENTRE,40007097,450,S6 3TN
Department of Health,NHS Sheffield CCG,28/02/2022,C&M-GMS Global Sum,PRC DELEGATED CO-COMMISSIONING,WALKLEY HOUSE MEDICAL CENTRE,40007097,94444.15,S6 3TN
Department of Health,NHS Sheffield CCG,28/02/2022,C&M-GMS LONG COVID ES,PRC DELEGATED CO-COMMISSIONING,WALKLEY HOUSE MEDICAL CENTRE,40007097,506.25,S6 3TN
Department of Health,NHS Sheffield CCG,28/02/2022,C&M-GMS PCN DES Participation,PRC DELEGATED CO-COMMISSIONING,WALKLEY HOUSE MEDICAL CENTRE,40007097,1785.69,S6 3TN
Department of Health,NHS Sheffield CCG,28/02/2022,C&M-GMS PCO Locum Sickness,PRC DELEGATED CO-COMMISSIONING,WALKLEY HOUSE MEDICAL CENTRE,40007097,13284.9,S6 3TN
Department of Health,NHS Sheffield CCG,28/02/2022,C&M-GMS Prem Notional Rent,PRC DELEGATED CO-COMMISSIONING,WALKLEY HOUSE MEDICAL CENTRE,40007097,5806.96,S6 3TN
Department of Health,NHS Sheffield CCG,28/02/2022,C&M-GMS QOF Aspiration,PRC DELEGATED CO-COMMISSIONING,WALKLEY HOUSE MEDICAL CENTRE,40007097,9792.91,S6 3TN
Department of Health,NHS Sheffield CCG,28/02/2022,Soc Care-Other Soc Care,COMMISSIONING - NON ACUTE,SHEFFIELD CITY COUNCIL,40015903,1000000,S1 1UJ
Department of Health,NHS Sheffield CCG,28/02/2022,Clinical&Medical-Serv Recd-F Trsts,BEREAVEMENT SERVICE,SHEFFIELD CHILDRENS NHS FOUNDATION TRUST,40015911,25347,S10 2TH
Department of Health,NHS Sheffield CCG,28/02/2022,Clinical&Medical-Serv Recd-F Trsts,BEREAVEMENT SERVICE,BARNSLEY HOSPITAL NHS FOUNDATION TRUST,40016013,26880,S75 2EP
Department of Health,NHS Sheffield CCG,28/02/2022,Clinical&Medical-Serv Recd-F Trsts,BEREAVEMENT SERVICE,BARNSLEY HOSPITAL NHS FOUNDATION TRUST,40016014,30341.5,S75 2EP
Department of Health,NHS Sheffield CCG,28/02/2022,C&M-GMS DES Minor Surgery,PRC DELEGATED CO-COMMISSIONING,SHARROW LANE MEDICAL CENTRE,40027257,40,S11 8AN
Department of Health,NHS Sheffield CCG,28/02/2022,C&M-GMS Global Sum,PRC DELEGATED CO-COMMISSIONING,SHARROW LANE MEDICAL CENTRE,40027257,26723.44,S11 8AN
Department of Health,NHS Sheffield CCG,28/02/2022,C&M-GMS LONG COVID ES,PRC DELEGATED CO-COMMISSIONING,SHARROW LANE MEDICAL CENTRE,40027257,169.59,S11 8AN
Department of Health,NHS Sheffield CCG,28/02/2022,C&M-GMS PCN DES Participation,PRC DELEGATED CO-COMMISSIONING,SHARROW LANE MEDICAL CENTRE,40027257,500.68,S11 8AN
Department of Health,NHS Sheffield CCG,28/02/2022,C&M-GMS PCO Locum Sickness,PRC DELEGATED CO-COMMISSIONING,SHARROW LANE MEDICAL CENTRE,40027257,18727.05,S11 8AN
Department of Health,NHS Sheffield CCG,28/02/2022,C&M-GMS Prem Notional Rent,PRC DELEGATED CO-COMMISSIONING,SHARROW LANE MEDICAL CENTRE,40027257,2741.67,S11 8AN
Department of Health,NHS Sheffield CCG,28/02/2022,C&M-GMS QOF Aspiration,PRC DELEGATED CO-COMMISSIONING,SHARROW LANE MEDICAL CENTRE,40027257,2983.54,S11 8AN
Department of Health,NHS Sheffield CCG,28/02/2022,C&M-GMS DES Minor Surgery,PRC DELEGATED CO-COMMISSIONING,STONECROFT MEDICAL CENTRE,40027259,1480,S12 2LJ
Department of Health,NHS Sheffield CCG,28/02/2022,C&M-GMS Global Sum,PRC DELEGATED CO-COMMISSIONING,STONECROFT MEDICAL CENTRE,40027259,36643.02,S12 2LJ
Department of Health,NHS Sheffield CCG,28/02/2022,C&M-GMS LONG COVID ES,PRC DELEGATED CO-COMMISSIONING,STONECROFT MEDICAL CENTRE,40027259,173.13,S12 2LJ
Department of Health,NHS Sheffield CCG,28/02/2022,C&M-GMS PCN DES Participation,PRC DELEGATED CO-COMMISSIONING,STONECROFT MEDICAL CENTRE,40027259,680.92,S12 2LJ
Department of Health,NHS Sheffield CCG,28/02/2022,C&M-GMS Prem Notional Rent,PRC DELEGATED CO-COMMISSIONING,STONECROFT MEDICAL CENTRE,40027259,2808.33,S12 2LJ
Department of Health,NHS Sheffield CCG,28/02/2022,C&M-GMS QOF Aspiration,PRC DELEGATED CO-COMMISSIONING,STONECROFT MEDICAL CENTRE,40027259,4286.72,S12 2LJ
Department of Health,NHS Sheffield CCG,28/02/2022,C&M-GMS WEIGHT MANAGEMENT SERVICE,PRC DELEGATED CO-COMMISSIONING,STONECROFT MEDICAL CENTRE,40027259,92,S12 2LJ
Department of Health,NHS Sheffield CCG,28/02/2022,Clinical&Medical-Independent Sector,ACUTE COMMISSIONING,ONEHEALTH GROUP,40027650,36046.51,S11 8UX
Department of Health,NHS Sheffield CCG,28/02/2022,Clinical&Medical-Independent Sector,ACUTE COMMISSIONING,BMI HEALTHCARE LTD,40027658,-27070.42,SK3 0XN
Department of Health,NHS Sheffield CCG,28/02/2022,Cont Care-Learning Disab(<65),CHC ADULT FULLY FUNDED,BESPOKE CARE AND SUPPORT LTD,40040299,35193.68,S73 0HQ
Department of Health,NHS Sheffield CCG,28/02/2022,Cont Care-Learning Disab(<65),CHC ADULT FULLY FUNDED,BESPOKE CARE AND SUPPORT LTD,40040308,35193.68,S73 0HQ
Department of Health,NHS Sheffield CCG,28/02/2022,C&M-GMS PCN DES Clin Pharmacist,PRC DELEGATED CO-COMMISSIONING,PRIMARY CARE SHEFFIELD LTD,40049274,25140.08,S9 4EU
Department of Health,NHS Sheffield CCG,28/02/2022,Clinical&Medical-Voluntary Sector,BEREAVEMENT SERVICE,VOLUNTARY ACTION ROTHERHAM,40052239,100000,S60 2HX
Department of Health,NHS Sheffield CCG,28/02/2022,Clinical&Medical-Serv Recd-F Trsts,BEREAVEMENT SERVICE,VOLUNTARY ACTION ROTHERHAM,40052249,53000,S60 2HX
Department of Health,NHS Sheffield CCG,28/02/2022,Clinical&Medical-Independent Sector,ACUTE COMMISSIONING,SPAMEDICA LTD,40052254,58456.58,BL1 1HU
Department of Health,NHS Sheffield CCG,28/02/2022,Clinical&Medical-Serv Recd-F Trsts,BEREAVEMENT SERVICE,SHEFFIELD CHILDRENS NHS FOUNDATION TRUST,40052260,57528,S10 2TH
Department of Health,NHS Sheffield CCG,28/02/2022,Clinical&Medical-Serv Recd-F Trsts,BEREAVEMENT SERVICE,SHEFFIELD CHILDRENS NHS FOUNDATION TRUST,40052308,563725,S10 2TH
Department of Health,NHS Sheffield CCG,28/02/2022,Clinical&Medical-Serv Recd-F Trsts,BEREAVEMENT SERVICE,DONCASTER AND BASSETLAW HOSPITALS NHS FOUNDATION TRUST,40052311,54981.6,WF3 1WE
Department of Health,NHS Sheffield CCG,28/02/2022,Other Gen Supplies & Srv,BEREAVEMENT SERVICE,YORKSHIRE & HUMBER AHSN LTD,40052317,82218.24,WF4 3BA
Department of Health,NHS Sheffield CCG,28/02/2022,Other Gen Supplies & Srv,BEREAVEMENT SERVICE,PRIMARY CARE DONCASTER LTD,40052342,158000,DN4 8QN
Department of Health,NHS Sheffield CCG,28/02/2022,Clinical&Medical-Serv Recd-F Trsts,BEREAVEMENT SERVICE,SHEFFIELD CHILDRENS NHS FOUNDATION TRUST,40067813,29000,S10 2TH
Department of Health,NHS Sheffield CCG,28/02/2022,Hcare Srv Rec Fdtn Trust-Non Contract,ACUTE COMMISSIONING,SHEFFIELD TEACHING HOSPITALS NHS FOUNDATION TRUST,40067819,26000,S5 7AU
Department of Health,NHS Sheffield CCG,28/02/2022,Clinical&Medical-Serv Recd-F Trsts,BEREAVEMENT SERVICE,SHEFFIELD TEACHING HOSPITALS NHS FOUNDATION TRUST,40067821,38601,S5 7AU
